Workbook

Sheet Open
A2: MK HOMES $2000 Open
A3: FUT | B3: WPRA$250 | C3: DER | D3: Age Inc | E3: HS | F3: Draw | G3: Rider Name | H3: Horse Name | I3: Pen | J3: Time | K3: Final Time | L3: Placing | M3: Money Earned | O3: D Placing | Q3: Split
F4: 1 | G4: Timberly Erickson | H4: Mines Fast | J4: 17.984 | O4: 1D
F5: 2 | G5: Alyssa Rhodes | H5: Vegas 1D/2D FOR SALE, kid safe | J5: 16.329 | O5: 2D | Q5: 0.5
F6: 3 | G6: Charlotte Edwards | H6: VF Eye Of The Tiger | J6: nt17.441 | O6: 3D | Q6: 0.5
F7: 4 | G7: Gabbie Grothe | H7: Sold Out | J7: nt16.489 | O7: 4D | Q7: 0.5
F8: 5 | G8: Kellie Autry | H8: Array For First Team | J8: nt17.583 | O8: 5D | Q8: 0.5
D9: A | F9: 6 | G9: Cassidy Rabb | H9: Firewaterz Lil Fritz | J9: 17.369
F10: 7 | G10: Karli Cowie | H10: Derby | J10: 17.198 | O10: # Entered
D11: A | F11: 8 | G11: Tiffany Durham | H11: Colonels Kerosene | J11: nt | O11: =COUNTA(G4:G503) -> 252
F12: 9 | G12: Brandy Gilbert | H12: Bonnie B Wonderized | J12: 17.615
F13: 10 | G13: Dana Richman | H13: SV Pretty Boy Rock | J13: 16.911 | O13: # Ran
F14: 11 | G14: Bridget Penn | H14: Tobicat Jazz | J14: 17.564 | O14: =COUNTA(J4:J503) -> 253
F15: 12 | G15: Lylan Corey | H15: Bogies French Gamble | J15: 16.171
F16: 13 | G16: Karen Manning | H16: Shut The Train Door | J16: 16.637 | O16: # Left
F17: 14 | G17: Natalie Green | H17: Aprils Dakota Mac | J17: 17.692 | O17: =$O$11-$O$14 -> -1
F18: 15 | G18: Jolene Montgomery | H18: Smooth N Heavenly | J18: 15.762
F19: 16 | G19: Hilary Hightower | H19: Hanks Bug Bomber | J19: 16.395
F20: 17 | G20: Callie Surles | H20: Frenchieslightoncash | J20: 16.777
F21: 18 | G21: Andrea Sewell | H21: Frenchmans Bellarose | J21: 16.651
A22: X | F22: 19 | G22: Lauren Kelly | H22: Maybe Baby Silk | J22: 16.289
D23: A | F23: 20 | G23: Kylena Hager | H23: Bar B Firewater Steel | J23: 16.621
E24: X | F24: 21 | G24: Jamie Wilson | H24: Check Your Bet | J24: 16.194
D25: A | E25: X | F25: 22 | G25: Jessie Cole | H25: Lion TO The Ladies | J25: nt15.690
F26: 23 | G26: Belinda Coppinger | H26: Chiseled On My Mind | J26: scratch
F27: 24 | G27: Maddison Crisp | H27: MC Blazing Gun | J27: 16.57
D28: Y | F28: 25 | G28: Emma Smith | H28: Pocket Fulla Pozzi | J28: 15.942
F29: 26 | G29: Sally Preston | H29: Cee U Later Gator | J29: nt17.622
A30: X | D30: S | F30: 27 | G30: Julie Bailey | H30: Imalive Sun Bug | J30: 16.092
F31: 28 | G31: Cadee Williams | H31: Goin Steady | J31: nt16.449
F32: 29 | G32: Ryan Reynolds | H32: Heavenly Firewater | J32: 15.971
F33: 30 | G33: Gretchen Goedecken | H33: Fine Whatever | J33: 16.637
D34: S | F34: 31 | G34: Jodi Stovall | H34: Ms French Drifter | J34: 16.693
D35: Y | F35: 32 | G35: Brye Eberling | H35: Ricky Bobby | J35: nt17.246
F36: 33 | G36: Shannon Peavy | H36: Moves Like Jagger | J36: 16.087
F37: 34 | G37: Libby Weiss | H37: Lethal Fire | J37: 16.888
F38: 35 | G38: Jolene Jones | H38: Cause it’s a Chex | J38: 17.086
F39: 36 | G39: Myndi Muncy | H39: Shesa Jetolena JE | J39: nt25.890
F40: 37 | G40: Sara Redden | H40: Pedro | J40: 17.518
F41: 38 | G41: Natasha Gray | H41: Bogies French Perk | J41: 16.644
F42: 39 | G42: Bill Barber | H42: Tyke | J42: 17.578
F43: 40 | G43: Charlotte Edwards | H43: TR Hippie Chick | J43: 17.375
F44: 41 | G44: Wendie Bodkin | H44: Bunny Chex Tradition | J44: 20.534
F45: 42 | G45: LJ LaRue | H45: Paidbythesecond | J45: 17.446
F46: 43 | G46: Jaylan Neatherlin | H46: Happy Dayz | J46: 19.92
A47: X | F47: 44 | G47: Aimee Williams | H47: DSC Woody Be Blue | J47: 17.343
F48: 45 | G48: Alyssa Rhodes | H48: Eyes | J48: 16.699
F49: 46 | G49: Shylah Love | H49: Hayday Lady Bug | J49: 17.47
D50: A | F50: 47 | G50: Kendall Jordan | H50: Guns on Fire | J50: 16.131
F51: 48 | G51: Lisa Flores | H51: Make Me Macho | J51: 16.786
D52: S | F52: 49 | G52: Ann Barrett | H52: RD | J52: 19.502
C53: X | D53: A | F53: 50 | G53: Cassidy Rabb | H53: VF Temptations | J53: 16.561
F54: 51 | G54: Crystal Benedict | H54: Smokin Hot Lady Cat | J54: 16.882
D55: A | F55: 52 | G55: Andrea Sewell | H55: Abbysolutly Blitzed | J55: 15.687
F56: 53 | G56: Cierra Chapman | H56: Sun In Fun | J56: 16.118
F57: 54 | G57: Raylene Cox | H57: Ya Give Me Fever | J57: 16.194
F58: 55 | G58: Kandace Bussell | H58: Sage | J58: 17.18
D59: S | F59: 56 | G59: DeeDee Jordan | H59: First Rappin Judge | J59: 17.145
F60: 57 | G60: Karen Heward | H60: Runnin Booger | J60: 17.466
F61: 58 | G61: Krista Lucas | H61: CM Bodee Bullion | J61: 16.439
D62: A | F62: 59 | G62: Tiffany Cox | H62: Zippy French Guy | J62: 17.907
F63: 60 | G63: Hilary Hightower | H63: Extremely Stolin | J63: 16.924
F64: 61 | G64: Michaela Zebro | H64: Streakin French Bell | J64: 16.266
D65: A | F65: 62 | G65: Kim Eisen | H65: Dollar | J65: 16.572
C66: X | D66: A | F66: 63 | G66: Jolene Montgomery | H66: Jets Heart N Soul | J66: nt15.541
D67: A | F67: 64 | G67: Shantell Hayes | H67: VF Runawaylocomotive | J67: 16.523
F68: 65 | G68: Julie Bailey | H68: Streakin Firewater | J68: 16.373
D69: Y | F69: 66 | G69: Emma Smith | H69: Martha | J69: nt17.979
A70: X | F70: 67 | G70: Ryan Reynolds | H70: Bella | J70: nt22.364
D71: Y | F71: 68 | G71: Caitlyn McCreary | H71: Gmcherryohxpress | J71: nt20.935
F72: 69 | G72: Kelcy Schaffner | H72: RR Shiners Fame | J72: 17.347
F73: 70 | G73: Scamper Cole | H73: Tee | J73: 18.236
F74: 71 | G74: Shannon Peavy | H74: Ima Real Otoole | J74: 16.384
F75: 72 | G75: Shelby Shackelford | H75: River | J75: 16.717
D76: A | F76: 73 | G76: Carey Benton | H76: Prime Thriftshop | J76: nt17.140
D77: A | F77: 74 | G77: Tiffany Durham | H77: Hard Rock Samantha | J77: 17.977
D78: S | F78: 75 | G78: Belinda Coppinger | H78: Miss America Fame | J78: 16.565
F79: 76 | G79: Stacy Whitener | H79: A Drift Of Roan | J79: 17.045
F80: 77 | G80: Lacy Matthews | H80: Shilohs Perky Pistol | J80: 16.845
A81: X | F81: 78 | G81: Jolene Jones | H81: Im Not Easy Guys | J81: 16.458
F82: 79 | G82: Cadee Williams | H82: Jokers Sugar Rey | J82: 16.312
D83: S | F83: 80 | G83: Leann Wills | H83: Yahoo Too | J83: 17.946
F84: 81 | G84: Denny Ralls | H84: SV Southern Comfort | J84: 16.296
F85: 82 | G85: Hannah Hertel | H85: Egos Moving Effort | J85: 16.669
C86: X | F86: 83 | G86: Kelly Valdez | H86: Dashinlikafame | J86: 15.642
A87: X | B87: X | F87: 84 | G87: Cierra Chapman | H87: Wood B A Babe | J87: 16.084
F88: 85 | G88: Madison Merrill | H88: RS Forever Famous | J88: nt17.772
C89: X | D89: A | F89: 86 | G89: Cassidy Rabb | H89: VF Coup Fulla Coins | J89: 16.431
F90: 87 | G90: Simone Elmore | H90: Badger A Conchadrift | J90: 16.99
A91: X | F91: 88 | G91: Jenna Napier | H91: Frenchmans Dually | J91: 17.004
D92: A | F92: 89 | G92: Lindsay Hoffman | H92: First Down Deception | J92: 15.661
A93: X | F93: 90 | G93: Andrea Sewell | H93: Uptown Fame | J93: 16.328
F94: 91 | G94: Gretchen Goedecken | H94: Pretty Bay Pony | J94: 17.132
D95: S | F95: 92 | G95: Susie Luschar | H95: CarmeLeo Gold | J95: 16.296
D96: A | F96: 93 | G96: Aryn Wilkerson | H96: SpicyLittleStar | J96: nt17.282
F97: 94 | G97: Sherrel Burgess | H97: Boomer T Fellers | J97: 17.124
D98: S | F98: 95 | G98: DeeDee Jordan | H98: Lil Yella Draw | J98: 16.929
C99: X | F99: 96 | G99: Krista Lucas | H99: Crown Royal Jet | J99: 16.633
F100: 97 | G100: Jessica Pantella | H100: Twisted Fun | J100: 17.715
E101: X | F101: 98 | G101: Hilary Hightower | H101: No Effort Makin Cash | J101: nt16.032
D102: A | F102: 99 | G102: Kim Eisen | H102: Jessie | J102: 16.887
F103: 100 | G103: Wendy Suhn | H103: HLH Streakin A Fling | J103: 16.321
F104: 101 | G104: Julie Bailey | H104: KM Winnie Bronson | J104: 16.569
F105: 102 | G105: Raylene Cox | H105: Slick Cindy | J105: 18.902
F106: 103 | G106: Scamper Cole | H106: A Striking Fling | J106: 16.245
F107: 104 | G107: Shelby Shackelford | H107: RTF A Natural Stoli | J107: 16.393
A108: X | F108: 105 | G108: Ryan Reynolds | H108: VF Famous Six Moons | J108: nt18.211
B109: X | F109: 106 | G109: Jolene Montgomery | H109: Firen Ta Heaven | J109: 15.607
D110: A | F110: 107 | G110: Shantell Hayes | H110: Perk Up N Dash | J110: nt16,497
D111: S | F111: 108 | G111: Mary Carter | H111: Bullys Tiger Eye | J111: 16.053
D112: S | F112: 109 | G112: Trina Murray | H112: Fuel For Dash | J112: Scratch
D113: A | F113: 110 | G113: Darby Cone | H113: Flynns Nu Gold | J113: nt16.670
F114: 111 | G114: Kristi Smith | H114: ELS Dynaflow Hooter | J114: 16.377
F115: 112 | G115: Lisa Jo Velliquette | H115: Namgis D 44 | J115: 16.959
F116: 113 | G116: Whitney Fisher | H116: BB French N Easy | J116: 17.013
D117: Y | F117: 114 | G117: Jolie Smith | H117: Docs Lil Leo | J117: 17.091
F118: 115 | G118: Kate Neill | H118: Dox Mega Magnolia | J118: 16.084
F119: 116 | G119: Jolene Jones | H119: Streakin Louie | J119: 16.066
F120: 117 | G120: Mychal Goad | H120: Annie | J120: 18.528
F121: 118 | G121: Ashlee Tierney | H121: CAShee Creek | J121: 17.129
D122: Y | F122: 119 | G122: Stormi Branch | H122: Demon | J122: 16.638
C123: X | F123: 120 | G123: Ashley Martinkus | H123: Jets Famous Lady | J123: 16.683
C124: X | D124: A | E124: X | F124: 121 | G124: Andrea Busby | H124: Buckwyld | J124: 15.966
D125: S | F125: 122 | G125: Kevin Davis | H125: Gibbs | J125: nt18.219
C126: X | F126: 123 | G126: Tyler Trotman | H126: Cowboy Ta Fame | J126: 16.302
A127: X | B127: X | F127: 124 | G127: Cierra Chapman | H127: Lil Blushing Blonde | J127: nt15.980
F128: 125 | G128: Stacey Gates | H128: PH Firewaters Payday | J128: Scratch
D129: A | F129: 126 | G129: Karissa Jones | H129: Anita Lot Of Cash | J129: 16.957
F130: 127 | G130: Noah Grimes | H130: Cali | J130: 17.042
F131: 128 | G131: Janee' Ornelas | H131: One Perfect Ruby | J131: nt15.586
F132: 129 | G132: Nisa Berry | H132: Oscar | J132: nt16.373
A133: X | F133: 130 | G133: Mandi Jo Fox | H133: Clever Quick Leo | J133: 17.847
D134: A | F134: 131 | G134: Chloe Johns | H134: Peaches | J134: 16.998
F135: 132 | G135: TK Lawrence | H135: Hunk Of Luv | J135: 16.18
F136: 133 | G136: Gretchen Goedecken | H136: Spots In My Dreams | J136: 18.376
F137: 134 | G137: Melinda Nolen | H137: Diesel | J137: 17.488
D138: Y | F138: 135 | G138: Kaylee Lehrmann | H138: Texas Twister | J138: 19.148
F139: 136 | G139: Karen Shelley | H139: Flying Bar Bailey | J139: 16.433
B140: X | F140: 137 | G140: Jolene Montgomery | H140: Famously Perkin | J140: nt16.797
A141: X | D141: A | F141: 138 | G141: Brooke Kelley | H141: No Bueno Karma | J141: 16.599
A142: X | F142: 139 | G142: Hilary Hightower | H142: This Blondes Not Dun | J142: 17.416
F143: 140 | G143: Katie Perkins | H143: Bubba | J143: 18.13
D144: A | F144: 141 | G144: Tiffany Durham | H144: Dashin Luke Perry | J144: 17.722
D145: A | F145: 142 | G145: Scamper Cole | H145: DM Streak Aboo | J145: 16.297
F146: 143 | G146: Wendy Suhn | H146: She B Astreakin | J146: 16.187
D147: A | F147: 144 | G147: Natalie Steed | H147: Seville De Coup | J147: 16.787
F148: 145 | G148: Devon Click | H148: Surprise Im Flyin | J148: 17.252
F149: 146 | G149: Kate Neill | H149: Frenchmans Flint | J149: 17.706
F150: 147 | G150: Emily Williams | H150: Frosty | J150: 16.806
D151: A | F151: 148 | G151: Darby Cone | H151: Perks Seven Three | J151: 16.318
F152: 149 | G152: Meredith Driskill | H152: Sally | J152: 16.735
F153: 150 | G153: Jenna Court | H153: Brownie | J153: nt16.594
F154: 151 | G154: Carrie Putnam | H154: Ace | J154: 16.166
D155: A | F155: 152 | G155: Chancie Rogers | H155: Sugar | J155: nt15.987
F156: 153 | G156: Bonnie Ray | H156: Ed | J156: 16.95
A157: X | F157: 154 | G157: Anne-Marie Lugo | H157: Keeper | J157: 17.721
F158: 155 | G158: Lacey Harmon | H158: Seven Spanish Angels | J158: 17.295
D159: A | F159: 156 | G159: Kaylyn Smith | H159: Classic Royal Star | J159: 17.573
C160: X | F160: 157 | G160: Ashley Martinkus | H160: Famous Flight Plan | J160: 16.19
F161: 158 | G161: Stacey Gates | H161: Johnny On The Rocks | J161: Scratch
F162: 159 | G162: Erin Reich | H162: Mazie | J162: 16.493
F163: 160 | G163: Cierra Chapman | H163: Lever Action | J163: Scratch
F164: 161 | G164: Jo Fisher | J164: 15.961
E165: X | F165: 162 | G165: Nisa Berry | H165: VF Look I'm Back | J165: 16.154
D166: S | F166: 163 | G166: Lisa Wernli | H166: Proudtobefrench | J166: 16.447
F167: 164 | G167: Pattie Mackie | H167: Flitter Fuel Lad | J167: 16.655
F168: 165 | G168: Judi Veeder | H168: GL Tuff | J168: 17.333
D169: A | F169: 166 | G169: Lynn Whisenant | H169: Heza Wonder Streakin | J169: 21.475
F170: 167 | G170: Adriana Bronough | H170: Fire Mia Memory | J170: 16.679
D171: A | F171: 168 | G171: Mandi Jo Fox | H171: Rivons Golden Goose Quick Leo | J171: 16.378
F172: 169 | G172: Maddi Hickmon | H172: Mia | J172: 17.024
F173: 170 | G173: Sherri Saunders | H173: Skeeter | J173: 16.491
D174: A | F174: 171 | G174: Tiffany Durham | H174: Doug | J174: 17.442
F175: 172 | J175: Scratch
D176: S | F176: 173 | G176: Terry Quintana | H176: Jerry | J176: 16.579
D177: A | F177: 174 | G177: Clara G244Barrington | H177: Mirror In The Sky | J177: 16.094
D178: A | F178: 175 | G178: Cody Hornbuckle | H178: Mountain Of Fame | J178: 17.31
A179: X | F179: 176 | G179: Ryan Reynolds | H179: Baby Bud | J179: 15.969
F180: 177 | G180: Darby Cone | H180: EPH Streakin Toro | J180: 18.245
F181: 178 | G181: Shea Durfey | J181: 16.075
F182: 179 | G182: Kim Otwell | H182: Boots Justalena | J182: 16.762
F183: 180 | G183: Courtney Black | H183: Smoke | J183: 16.912
F184: 181 | G184: AD Rucktescher | H184: MrSpoon | J184: 17.419
D185: A | E185: X | F185: 182 | G185: Andrea Busby | H185: Guys Girl Power | J185: 16.009
F186: 183 | G186: Sadie Holloway | H186: Sheza Witty Lynx | J186: nt16.443
D187: Y | E187: X | F187: 184 | G187: Rylee Hardin | H187: Fro | J187: 15.942
F188: 185 | G188: Kim Schulze | H188: French Banana Puddin | J188: nt15.977
F189: 186 | G189: Kailey Dement | H189: Jess Plain Fast | J189: 16.111
F190: 187 | G190: Lacey Harmon | H190: Just The Way You Are | J190: 16.757
D191: A | F191: 188 | G191: Chelsi McLarty | H191: Sunni | J191: 17.433
F192: 189 | G192: Sherry Saunders | H192: Leonard | J192: 17.56
F193: 190 | G193: Rachel Rule | H193: Happy | J193: 16.424
D194: A | F194: 191 | G194: Sonyia RaBorn | H194: Imasharpfrench Guy | J194: 16.455
C195: X | F195: 192 | G195: Ashley Martinkus | H195: Famous Blazin Jane | J195: 16.587
F196: 193 | G196: Lois Ferguson | H196: Epic Two KS | J196: 15.884
F197: 194 | G197: Shannon Black | H197: TS Jets Blazin Lena | J197: 16.598
F198: 195 | G198: Kyra Boling | H198: Stoli My Fortune | J198: nt
F199: 196 | G199: Jo FIsher | J199: 17.055
F200: 197 | G200: Betina Felton | H200: Twist | J200: 16.407
F201: 198 | G201: Canie Miner | H201: Pleasin Pandalita | J201: nt22.212
... 302 more rows

Sheet Senior
A1: Futurity | B1: Der | C1: Age Inct. | D1: BBR | E1: Draw | F1: Rider Name | G1: Horse Name | H1: Pen | I1: Time | J1: Final Time | K1: Placing | L1: Money Earned
E2: 1
E3: 2
E4: 3
E5: 4
E6: 5
E7: 6
E8: 7
E9: 8
E10: 9
E11: 10
E12: 11
E13: 12
E14: 13
E15: 14
E16: 15
E17: 16
E18: 17
E19: 18
E20: 19
E21: 20
E22: 21
E23: 22
E24: 23
E25: 24
E26: 25
E27: 26
E28: 27
E29: 28
E30: 29
E31: 30
E32: 31
E33: 32
E34: 33
E35: 34
E36: 35
E37: 36
E38: 37
E39: 38
E40: 39
E41: 40
E42: 41 | J42: =IF(OR(H42=5,H42=10, H42=15, H42="BP",H42="SCR"),"NT",I42) -> 0
E43: 42 | J43: 0
E44: 43 | J44: 0
E45: 44 | J45: 0
E46: 45 | J46: 0
E47: 46 | J47: 0
E48: 47 | J48: 0
E49: 48 | J49: 0
E50: 49 | J50: 0
E51: 50 | J51: 0
E52: 51 | J52: 0
E53: 52 | J53: 0
E54: 53 | J54: 0
E55: 54 | J55: 0
E56: 55 | J56: 0
E57: 56 | J57: 0
E58: 57 | J58: 0
E59: 58 | J59: 0
E60: 59 | J60: 0
E61: 60 | J61: 0
E62: 61 | J62: 0
E63: 62 | J63: 0
E64: 63 | J64: 0
E65: 64 | J65: 0
E66: 65 | J66: 0
E67: 66 | J67: =IF(OR(H67=5,H67=10, H67=15, H67="BP",H67="SCR"),"NT",I67) -> 0
E68: 67 | J68: 0
E69: 68 | J69: 0
E70: 69 | J70: 0
E71: 70 | J71: 0
E72: 71 | J72: 0
E73: 72 | J73: 0
E74: 73 | J74: 0
E75: 74 | J75: 0
E76: 75 | J76: 0
E77: 76 | J77: 0
E78: 77 | J78: 0
E79: 78 | J79: 0
E80: 79 | J80: 0
E81: 80 | J81: 0
E82: 81 | J82: 0
E83: 82 | J83: 0
E84: 83 | J84: 0
E85: 84 | J85: 0
E86: 85 | J86: 0
E87: 86 | J87: 0
E88: 87 | J88: 0
E89: 88 | J89: 0
E90: 89 | J90: 0
E91: 90 | J91: 0
E92: 91 | J92: 0
E93: 92 | J93: 0
E94: 93 | J94: 0
E95: 94 | J95: 0
E96: 95 | J96: 0
E97: 96 | J97: 0
E98: 97 | J98: 0
E99: 98 | J99: 0
E100: 99 | J100: 0
E101: 100 | J101: 0
E102: 101 | J102: 0
E103: 102 | J103: 0
E104: 103 | J104: 0
E105: 104 | J105: 0
E106: 105 | J106: 0
E107: 106 | J107: 0
E108: 107 | J108: 0
E109: 108 | J109: 0
E110: 109 | J110: 0
E111: 110 | J111: 0
E112: 111 | J112: 0
E113: 112 | J113: 0
E114: 113 | J114: 0
E115: 114 | J115: 0
E116: 115 | J116: 0
E117: 116 | J117: 0
E118: 117 | J118: 0
E119: 118 | J119: 0
E120: 119 | J120: 0
E121: 120 | J121: 0
E122: 121 | J122: 0
E123: 122 | J123: 0
E124: 123 | J124: 0
E125: 124 | J125: 0
E126: 125 | J126: 0
E127: 126 | J127: 0
E128: 127 | J128: 0
E129: 128 | J129: 0
E130: 129 | J130: 0
E131: 130 | J131: =IF(OR(H131=5,H131=10, H131=15, H131="BP",H131="SCR"),"NT",I131) -> 0
E132: 131 | J132: 0
E133: 132 | J133: 0
E134: 133 | J134: 0
E135: 134 | J135: 0
E136: 135 | J136: 0
E137: 136 | J137: 0
E138: 137 | J138: 0
E139: 138 | J139: 0
E140: 139 | J140: 0
E141: 140 | J141: 0
E142: 141 | J142: 0
E143: 142 | J143: 0
E144: 143 | J144: 0
E145: 144 | J145: 0
E146: 145 | J146: 0
E147: 146 | J147: 0
E148: 147 | J148: 0
E149: 148 | J149: 0
E150: 149 | J150: 0
E151: 150 | J151: 0
E152: 151 | J152: 0
E153: 152 | J153: 0
E154: 153 | J154: 0
E155: 154 | J155: 0
E156: 155 | J156: 0
E157: 156 | J157: 0
E158: 157 | J158: 0
E159: 158 | J159: 0
E160: 159 | J160: 0
E161: 160 | J161: 0
E162: 161 | J162: 0
E163: 162 | J163: 0
E164: 163 | J164: 0
E165: 164 | J165: 0
E166: 165 | J166: 0
E167: 166 | J167: 0
E168: 167 | J168: 0
E169: 168 | J169: 0
E170: 169 | J170: 0
E171: 170 | J171: 0
E172: 171 | J172: 0
E173: 172 | J173: 0
E174: 173 | J174: 0
E175: 174 | J175: 0
E176: 175 | J176: 0
E177: 176 | J177: 0
E178: 177 | J178: 0
E179: 178 | J179: 0
E180: 179 | J180: 0
E181: 180 | J181: 0
E182: 181 | J182: 0
E183: 182 | J183: 0
E184: 183 | J184: 0
E185: 184 | J185: 0
E186: 185 | J186: 0
E187: 186 | J187: 0
E188: 187 | J188: 0
E189: 188 | J189: 0
E190: 189 | J190: 0
E191: 190 | J191: 0
E192: 191 | J192: 0
E193: 192 | J193: 0
E194: 193 | J194: 0
E195: 194 | J195: =IF(OR(H195=5,H195=10, H195=15, H195="BP",H195="SCR"),"NT",I195) -> 0
E196: 195 | J196: 0
E197: 196 | J197: 0
E198: 197 | J198: 0
E199: 198 | J199: 0
E200: 199 | J200: 0
... 101 more rows

Sheet Adult
A1: Futurity | B1: Der | C1: Age Inct. | D1: BBR | E1: Draw | F1: Rider Name | G1: Horse Name | H1: Pen | I1: Time | J1: Final Time | K1: Placing | L1: Money Earned
E2: 1
E3: 2
E4: 3
E5: 4
E6: 5
E7: 6
E8: 7
E9: 8
E10: 9
E11: 10
E12: 11
E13: 12
E14: 13
E15: 14
E16: 15
E17: 16
E18: 17
E19: 18
E20: 19
E21: 20
E22: 21
E23: 22
E24: 23
E25: 24
E26: 25
E27: 26
E28: 27
E29: 28
E30: 29
E31: 30
E32: 31
E33: 32
E34: 33
E35: 34
E36: 35
E37: 36
E38: 37
E39: 38
E40: 39
E41: 40
E42: 41
E43: 42
E44: 43
E45: 44
E46: 45
E47: 46
E48: 47
E49: 48
E50: 49
E51: 50
E52: 51
E53: 52
E54: 53
E55: 54
E56: 55
E57: 56
E58: 57
E59: 58
E60: 59
E61: 60
E62: 61
E63: 62
E64: 63
E65: 64
E66: 65
E67: 66
E68: 67
E69: 68
E70: 69
E71: 70
E72: 71 | J72: =IF(OR(H72=5,H72=10, H72=15, H72="BP",H72="SCR"),"NT",I72) -> 0
E73: 72 | J73: 0
E74: 73 | J74: 0
E75: 74 | J75: 0
E76: 75 | J76: 0
E77: 76 | J77: 0
E78: 77 | J78: 0
E79: 78 | J79: 0
E80: 79 | J80: 0
E81: 80 | J81: 0
E82: 81 | J82: 0
E83: 82 | J83: 0
E84: 83 | J84: 0
E85: 84 | J85: 0
E86: 85 | J86: 0
E87: 86 | J87: 0
E88: 87 | J88: 0
E89: 88 | J89: 0
E90: 89 | J90: 0
E91: 90 | J91: 0
E92: 91 | J92: 0
E93: 92 | J93: 0
E94: 93 | J94: 0
E95: 94 | J95: 0
E96: 95 | J96: 0
E97: 96 | J97: 0
E98: 97 | J98: 0
E99: 98 | J99: 0
E100: 99 | J100: 0
E101: 100 | J101: 0
E102: 101 | J102: 0
E103: 102 | J103: 0
E104: 103 | J104: 0
E105: 104 | J105: 0
E106: 105 | J106: 0
E107: 106 | J107: 0
E108: 107 | J108: 0
E109: 108 | J109: 0
E110: 109 | J110: 0
E111: 110 | J111: 0
E112: 111 | J112: 0
E113: 112 | J113: 0
E114: 113 | J114: 0
E115: 114 | J115: 0
E116: 115 | J116: 0
E117: 116 | J117: 0
E118: 117 | J118: 0
E119: 118 | J119: 0
E120: 119 | J120: 0
E121: 120 | J121: 0
E122: 121 | J122: 0
E123: 122 | J123: 0
E124: 123 | J124: 0
E125: 124 | J125: 0
E126: 125 | J126: 0
E127: 126 | J127: 0
E128: 127 | J128: 0
E129: 128 | J129: 0
E130: 129 | J130: 0
E131: 130 | J131: =IF(OR(H131=5,H131=10, H131=15, H131="BP",H131="SCR"),"NT",I131) -> 0
E132: 131 | J132: 0
E133: 132 | J133: 0
E134: 133 | J134: 0
E135: 134 | J135: 0
E136: 135 | J136: 0
E137: 136 | J137: 0
E138: 137 | J138: 0
E139: 138 | J139: 0
E140: 139 | J140: 0
E141: 140 | J141: 0
E142: 141 | J142: 0
E143: 142 | J143: 0
E144: 143 | J144: 0
E145: 144 | J145: 0
E146: 145 | J146: 0
E147: 146 | J147: 0
E148: 147 | J148: 0
E149: 148 | J149: 0
E150: 149 | J150: 0
E151: 150 | J151: 0
E152: 151 | J152: 0
E153: 152 | J153: 0
E154: 153 | J154: 0
E155: 154 | J155: 0
E156: 155 | J156: 0
E157: 156 | J157: 0
E158: 157 | J158: 0
E159: 158 | J159: 0
E160: 159 | J160: 0
E161: 160 | J161: 0
E162: 161 | J162: 0
E163: 162 | J163: 0
E164: 163 | J164: 0
E165: 164 | J165: 0
E166: 165 | J166: 0
E167: 166 | J167: 0
E168: 167 | J168: 0
E169: 168 | J169: 0
E170: 169 | J170: 0
E171: 170 | J171: 0
E172: 171 | J172: 0
E173: 172 | J173: 0
E174: 173 | J174: 0
E175: 174 | J175: 0
E176: 175 | J176: 0
E177: 176 | J177: 0
E178: 177 | J178: 0
E179: 178 | J179: 0
E180: 179 | J180: 0
E181: 180 | J181: 0
E182: 181 | J182: 0
E183: 182 | J183: 0
E184: 183 | J184: 0
E185: 184 | J185: 0
E186: 185 | J186: 0
E187: 186 | J187: 0
E188: 187 | J188: 0
E189: 188 | J189: 0
E190: 189 | J190: 0
E191: 190 | J191: 0
E192: 191 | J192: 0
E193: 192 | J193: 0
E194: 193 | J194: 0
E195: 194 | J195: =IF(OR(H195=5,H195=10, H195=15, H195="BP",H195="SCR"),"NT",I195) -> 0
E196: 195 | J196: 0
E197: 196 | J197: 0
E198: 197 | J198: 0
E199: 198 | J199: 0
E200: 199 | J200: 0
... 101 more rows

Sheet Youth
A1: Futurity | B1: Der | C1: Age Inct. | D1: BBR | E1: Draw | F1: Rider Name | G1: Horse Name | H1: Pen | I1: Time | J1: Placing | K1: Money Earned
E2: 1
E3: 2
E4: 3
E5: 4
E6: 5
E7: 6
E8: 7
E9: 8
E10: 9
E11: 10
E12: 11
E13: 12
E14: 13
E15: 14
E16: 15
E17: 16
E18: 17
E19: 18
E20: 19
E21: 20
E22: 21
E23: 22
E24: 23
E25: 24
E26: 25
E27: 26
E28: 27
E29: 28
E30: 29
E31: 30
E32: 31
E33: 32
E34: 33
E35: 34
E36: 35
E37: 36
E38: 37
E39: 38
E40: 39
E41: 40
E42: 41
E43: 42
E44: 43
E45: 44
E46: 45
E47: 46
E48: 47
E49: 48
E50: 49
E51: 50
E52: 51
E53: 52
E54: 53
E55: 54
E56: 55
E57: 56
E58: 57
E59: 58
E60: 59
E61: 60
E62: 61
E63: 62
E64: 63
E65: 64
E66: 65
E67: 66
E68: 67
E69: 68
E70: 69
E71: 70
E72: 71
E73: 72
E74: 73
E75: 74
E76: 75
E77: 76
E78: 77
E79: 78
E80: 79
E81: 80
E82: 81
E83: 82
E84: 83
E85: 84
E86: 85
E87: 86
E88: 87
E89: 88
E90: 89
E91: 90
E92: 91
E93: 92
E94: 93
E95: 94
E96: 95
E97: 96
E98: 97
E99: 98
E100: 99
E101: 100
E102: 101
E103: 102
E104: 103
E105: 104
E106: 105
E107: 106
E108: 107
E109: 108
E110: 109
E111: 110
E112: 111
E113: 112
E114: 113
E115: 114
E116: 115
E117: 116
E118: 117
E119: 118
E120: 119
E121: 120
E122: 121
E123: 122
E124: 123
E125: 124
E126: 125
E127: 126
E128: 127
E129: 128
E130: 129
E131: 130
E132: 131
E133: 132
E134: 133
E135: 134
E136: 135
E137: 136
E138: 137
E139: 138
E140: 139
E141: 140
E142: 141
E143: 142
E144: 143
E145: 144
E146: 145
E147: 146
E148: 147
E149: 148
E150: 149
E151: 150
E152: 151
E153: 152
E154: 153
E155: 154
E156: 155
E157: 156
E158: 157
E159: 158
E160: 159
E161: 160
E162: 161
E163: 162
E164: 163
E165: 164
E166: 165
E167: 166
E168: 167
E169: 168
E170: 169
E171: 170
E172: 171
E173: 172
E174: 173
E175: 174
E176: 175
E177: 176
E178: 177
E179: 178
E180: 179
E181: 180
E182: 181
E183: 182
E184: 183
E185: 184
E186: 185
E187: 186
E188: 187
E189: 188
E190: 189
E191: 190
E192: 191
E193: 192
E194: 193
E195: 194
E196: 195
E197: 196
E198: 197
E199: 198
E200: 199
... 101 more rows

Sheet Derby
A1: Futurity | B1: Der | C1: Age Inct. | D1: BBR | E1: Draw | F1: Rider Name | G1: Horse Name | H1: c/o | I1: Time | J1: Final Time | K1: Placing | L1: Money Earned
E2: 1
E3: 2
E4: 3
E5: 4
E6: 5
E7: 6
E8: 7
E9: 8
E10: 9
E11: 10
E12: 11
E13: 12
E14: 13
E15: 14
E16: 15
E17: 16
E18: 17
E19: 18
E20: 19
E21: 20 | J21: =IF(OR(H21=5,H21=10, H21=15, H21="BP",H21="SCR"),"NT",I21) -> 0
E22: 21 | J22: 0
E23: 22 | J23: 0
E24: 23 | J24: 0
E25: 24 | J25: 0
E26: 25 | J26: 0
E27: 26 | J27: 0
E28: 27 | J28: 0
E29: 28 | J29: 0
E30: 29 | J30: 0
E31: 30 | J31: 0
E32: 31 | J32: 0
E33: 32 | J33: 0
E34: 33 | J34: 0
E35: 34 | J35: 0
E36: 35 | J36: 0
E37: 36 | J37: 0
E38: 37 | J38: 0
E39: 38 | J39: 0
E40: 39 | J40: 0
E41: 40 | J41: 0
E42: 41 | J42: 0
E43: 42 | J43: 0
E44: 43 | J44: 0
E45: 44 | J45: 0
E46: 45 | J46: 0
E47: 46 | J47: 0
E48: 47 | J48: 0
E49: 48 | J49: 0
E50: 49 | J50: 0
E51: 50 | J51: 0
E52: 51 | J52: 0
E53: 52 | J53: 0
E54: 53 | J54: 0
E55: 54 | J55: 0
E56: 55 | J56: 0
E57: 56 | J57: 0
E58: 57 | J58: 0
E59: 58 | J59: 0
E60: 59 | J60: 0
E61: 60 | J61: 0
E62: 61 | J62: 0
E63: 62 | J63: 0
E64: 63 | J64: 0
E65: 64 | J65: 0
E66: 65 | J66: 0
E67: 66 | J67: 0
E68: 67 | J68: 0
E69: 68 | J69: 0
E70: 69 | J70: 0
E71: 70 | J71: 0
E72: 71 | J72: 0
E73: 72 | J73: 0
E74: 73 | J74: 0
E75: 74 | J75: 0
E76: 75 | J76: 0
E77: 76 | J77: 0
E78: 77 | J78: 0
E79: 78 | J79: 0
E80: 79 | J80: 0
E81: 80 | J81: 0
E82: 81 | J82: =IF(OR(H82=5,H82=10, H82=15, H82="BP",H82="SCR"),"NT",I82) -> 0
E83: 82 | J83: 0
E84: 83 | J84: 0
E85: 84 | J85: 0
E86: 85 | J86: 0
E87: 86 | J87: 0
E88: 87 | J88: 0
E89: 88 | J89: 0
E90: 89 | J90: 0
E91: 90 | J91: 0
E92: 91 | J92: 0
E93: 92 | J93: 0
E94: 93 | J94: 0
E95: 94 | J95: 0
E96: 95 | J96: 0
E97: 96 | J97: 0
E98: 97 | J98: 0
E99: 98 | J99: 0
E100: 99 | J100: 0
E101: 100 | J101: 0
E102: 101 | J102: 0
E103: 102 | J103: 0
E104: 103 | J104: 0
E105: 104 | J105: 0
E106: 105 | J106: 0
E107: 106 | J107: 0
E108: 107 | J108: 0
E109: 108 | J109: 0
E110: 109 | J110: 0
E111: 110 | J111: 0
E112: 111 | J112: 0
E113: 112 | J113: 0
E114: 113 | J114: 0
E115: 114 | J115: 0
E116: 115 | J116: 0
E117: 116 | J117: 0
E118: 117 | J118: 0
E119: 118 | J119: 0
E120: 119 | J120: 0
E121: 120 | J121: 0
E122: 121 | J122: 0
E123: 122 | J123: 0
E124: 123 | J124: 0
E125: 124 | J125: 0
E126: 125 | J126: 0
E127: 126 | J127: 0
E128: 127 | J128: 0
E129: 128 | J129: 0
E130: 129 | J130: 0
E131: 130 | J131: 0
E132: 131 | J132: 0
E133: 132 | J133: 0
E134: 133 | J134: 0
E135: 134 | J135: 0
E136: 135 | J136: 0
E137: 136 | J137: 0
E138: 137 | J138: 0
E139: 138 | J139: 0
E140: 139 | J140: 0
E141: 140 | J141: 0
E142: 141 | J142: 0
E143: 142 | J143: 0
E144: 143 | J144: 0
E145: 144 | J145: 0
E146: 145 | J146: =IF(OR(H146=5,H146=10, H146=15, H146="BP",H146="SCR"),"NT",I146) -> 0
E147: 146 | J147: 0
E148: 147 | J148: 0
E149: 148 | J149: 0
E150: 149 | J150: 0
E151: 150 | J151: 0
E152: 151 | J152: 0
E153: 152 | J153: 0
E154: 153 | J154: 0
E155: 154 | J155: 0
E156: 155 | J156: 0
E157: 156 | J157: 0
E158: 157 | J158: 0
E159: 158 | J159: 0
E160: 159 | J160: 0
E161: 160 | J161: 0
E162: 161 | J162: 0
E163: 162 | J163: 0
E164: 163 | J164: 0
E165: 164 | J165: 0
E166: 165 | J166: 0
E167: 166 | J167: 0
E168: 167 | J168: 0
E169: 168 | J169: 0
E170: 169 | J170: 0
E171: 170 | J171: 0
E172: 171 | J172: 0
E173: 172 | J173: 0
E174: 173 | J174: 0
E175: 174 | J175: 0
E176: 175 | J176: 0
E177: 176 | J177: 0
E178: 177 | J178: 0
E179: 178 | J179: 0
E180: 179 | J180: 0
E181: 180 | J181: 0
E182: 181 | J182: 0
E183: 182 | J183: 0
E184: 183 | J184: 0
E185: 184 | J185: 0
E186: 185 | J186: 0
E187: 186 | J187: 0
E188: 187 | J188: 0
E189: 188 | J189: 0
E190: 189 | J190: 0
E191: 190 | J191: 0
E192: 191 | J192: 0
E193: 192 | J193: 0
E194: 193 | J194: 0
E195: 194 | J195: 0
E196: 195 | J196: 0
E197: 196 | J197: 0
E198: 197 | J198: 0
E199: 198 | J199: 0
E200: 199 | J200: 0
... 101 more rows

Sheet Revolution
A1: Futurity | B1: Der | C1: Age Inct. | D1: BBR | E1: Draw | F1: Rider Name | G1: Horse Name | H1: c/o | I1: Time | J1: Final Time | K1: Placing | L1: Money Earned
E2: 1
E3: 2
E4: 3
E5: 4
E6: 5
E7: 6
E8: 7
E9: 8
E10: 9
E11: 10
E12: 11
E13: 12
E14: 13
E15: 14
E16: 15
E17: 16
E18: 17
E19: 18
E20: 19
E21: 20
E22: 21
E23: 22
E24: 23
E25: 24
E26: 25
E27: 26
E28: 27
E29: 28
E30: 29
E31: 30
E32: 31
E33: 32
E34: 33
E35: 34
E36: 35
E37: 36
E38: 37
E39: 38
E40: 39
E41: 40
E42: 41
E43: 42
E44: 43
E45: 44
E46: 45
E47: 46
E48: 47
E49: 48 | J49: =IF(OR(H49=5,H49=10, H49=15, H49="BP",H49="SCR"),"NT",I49) -> 0
E50: 49 | J50: 0
E51: 50 | J51: 0
E52: 51 | J52: 0
E53: 52 | J53: 0
E54: 53 | J54: 0
E55: 54 | J55: 0
E56: 55 | J56: 0
E57: 56 | J57: 0
E58: 57 | J58: 0
E59: 58 | J59: 0
E60: 59 | J60: 0
E61: 60 | J61: 0
E62: 61 | J62: 0
E63: 62 | J63: 0
E64: 63 | J64: 0
E65: 64 | J65: 0
E66: 65 | J66: 0
E67: 66 | J67: 0
E68: 67 | J68: 0
E69: 68 | J69: 0
E70: 69 | J70: 0
E71: 70 | J71: 0
E72: 71 | J72: 0
E73: 72 | J73: 0
E74: 73 | J74: 0
E75: 74 | J75: 0
E76: 75 | J76: 0
E77: 76 | J77: 0
E78: 77 | J78: 0
E79: 78 | J79: 0
E80: 79 | J80: 0
E81: 80 | J81: 0
E82: 81 | J82: 0
E83: 82 | J83: 0
E84: 83 | J84: 0
E85: 84 | J85: 0
E86: 85 | J86: 0
E87: 86 | J87: 0
E88: 87 | J88: 0
E89: 88 | J89: 0
E90: 89 | J90: 0
E91: 90 | J91: 0
E92: 91 | J92: 0
E93: 92 | J93: 0
E94: 93 | J94: 0
E95: 94 | J95: 0
E96: 95 | J96: 0
E97: 96 | J97: 0
E98: 97 | J98: 0
E99: 98 | J99: 0
E100: 99 | J100: 0
E101: 100 | J101: 0
E102: 101 | J102: 0
E103: 102 | J103: 0
E104: 103 | J104: =IF(OR(H104=5,H104=10, H104=15, H104="BP",H104="SCR"),"NT",I104) -> 0
E105: 104 | J105: 0
E106: 105 | J106: 0
E107: 106 | J107: 0
E108: 107 | J108: 0
E109: 108 | J109: 0
E110: 109 | J110: 0
E111: 110 | J111: 0
E112: 111 | J112: 0
E113: 112 | J113: 0
E114: 113 | J114: 0
E115: 114 | J115: 0
E116: 115 | J116: 0
E117: 116 | J117: 0
E118: 117 | J118: 0
E119: 118 | J119: 0
E120: 119 | J120: 0
E121: 120 | J121: 0
E122: 121 | J122: 0
E123: 122 | J123: 0
E124: 123 | J124: 0
E125: 124 | J125: 0
E126: 125 | J126: 0
E127: 126 | J127: 0
E128: 127 | J128: 0
E129: 128 | J129: 0
E130: 129 | J130: 0
E131: 130 | J131: 0
E132: 131 | J132: 0
E133: 132 | J133: 0
E134: 133 | J134: 0
E135: 134 | J135: 0
E136: 135 | J136: 0
E137: 136 | J137: 0
E138: 137 | J138: 0
E139: 138 | J139: 0
E140: 139 | J140: 0
E141: 140 | J141: 0
E142: 141 | J142: 0
E143: 142 | J143: 0
E144: 143 | J144: 0
E145: 144 | J145: 0
E146: 145 | J146: 0
E147: 146 | J147: 0
E148: 147 | J148: 0
E149: 148 | J149: 0
E150: 149 | J150: 0
E151: 150 | J151: 0
E152: 151 | J152: 0
E153: 152 | J153: 0
E154: 153 | J154: 0
E155: 154 | J155: 0
E156: 155 | J156: 0
E157: 156 | J157: 0
E158: 157 | J158: 0
E159: 158 | J159: 0
E160: 159 | J160: 0
E161: 160 | J161: 0
E162: 161 | J162: 0
E163: 162 | J163: 0
E164: 163 | J164: 0
E165: 164 | J165: 0
E166: 165 | J166: 0
E167: 166 | J167: 0
E168: 167 | J168: =IF(OR(H168=5,H168=10, H168=15, H168="BP",H168="SCR"),"NT",I168) -> 0
E169: 168 | J169: 0
E170: 169 | J170: 0
E171: 170 | J171: 0
E172: 171 | J172: 0
E173: 172 | J173: 0
E174: 173 | J174: 0
E175: 174 | J175: 0
E176: 175 | J176: 0
E177: 176 | J177: 0
E178: 177 | J178: 0
E179: 178 | J179: 0
E180: 179 | J180: 0
E181: 180 | J181: 0
E182: 181 | J182: 0
E183: 182 | J183: 0
E184: 183 | J184: 0
E185: 184 | J185: 0
E186: 185 | J186: 0
E187: 186 | J187: 0
E188: 187 | J188: 0
E189: 188 | J189: 0
E190: 189 | J190: 0
E191: 190 | J191: 0
E192: 191 | J192: 0
E193: 192 | J193: 0
E194: 193 | J194: 0
E195: 194 | J195: 0
E196: 195 | J196: 0
E197: 196 | J197: 0
E198: 197 | J198: 0
E199: 198 | J199: 0
E200: 199 | J200: 0
... 101 more rows

Sheet Highstakes
A1: Futurity | B1: Der | C1: Age Inct. | D1: BBR | E1: Draw | F1: Rider Name | G1: Horse Name | H1: c/o | I1: Time | J1: Final Time | K1: Placing | L1: Money Earned
E2: 1
E3: 2
E4: 3
E5: 4
E6: 5
E7: 6
E8: 7
E9: 8
E10: 9
E11: 10
E12: 11
E13: 12
E14: 13
E15: 14
E16: 15
E17: 16
E18: 17
E19: 18
E20: 19
E21: 20
E22: 21
E23: 22
E24: 23
E25: 24
E26: 25
E27: 26
E28: 27
E29: 28
E30: 29
E31: 30
E32: 31
E33: 32
E34: 33
E35: 34
E36: 35
E37: 36
E38: 37
E39: 38
E40: 39 | J40: =IF(OR(H40=5,H40=10, H40=15, H40="BP",H40="SCR"),"NT",I40) -> 0
E41: 40 | J41: 0
E42: 41 | J42: 0
E43: 42 | J43: 0
E44: 43 | J44: 0
E45: 44 | J45: 0
E46: 45 | J46: 0
E47: 46 | J47: 0
E48: 47 | J48: 0
E49: 48 | J49: 0
E50: 49 | J50: 0
E51: 50 | J51: 0
E52: 51 | J52: 0
E53: 52 | J53: 0
E54: 53 | J54: 0
E55: 54 | J55: 0
E56: 55 | J56: 0
E57: 56 | J57: 0
E58: 57 | J58: 0
E59: 58 | J59: 0
E60: 59 | J60: 0
E61: 60 | J61: 0
E62: 61 | J62: 0
E63: 62 | J63: 0
E64: 63 | J64: 0
E65: 64 | J65: 0
E66: 65 | J66: 0
E67: 66 | J67: 0
E68: 67 | J68: 0
E69: 68 | J69: 0
E70: 69 | J70: 0
E71: 70 | J71: 0
E72: 71 | J72: 0
E73: 72 | J73: 0
E74: 73 | J74: 0
E75: 74 | J75: 0
E76: 75 | J76: 0
E77: 76 | J77: 0
E78: 77 | J78: 0
E79: 78 | J79: 0
E80: 79 | J80: 0
E81: 80 | J81: 0
E82: 81 | J82: 0
E83: 82 | J83: 0
E84: 83 | J84: 0
E85: 84 | J85: 0
E86: 85 | J86: 0
E87: 86 | J87: 0
E88: 87 | J88: 0
E89: 88 | J89: 0
E90: 89 | J90: 0
E91: 90 | J91: 0
E92: 91 | J92: 0
E93: 92 | J93: 0
E94: 93 | J94: 0
E95: 94 | J95: 0
E96: 95 | J96: 0
E97: 96 | J97: 0
E98: 97 | J98: 0
E99: 98 | J99: 0
E100: 99 | J100: 0
E101: 100 | J101: 0
E102: 101 | J102: 0
E103: 102 | J103: 0
E104: 103 | J104: =IF(OR(H104=5,H104=10, H104=15, H104="BP",H104="SCR"),"NT",I104) -> 0
E105: 104 | J105: 0
E106: 105 | J106: 0
E107: 106 | J107: 0
E108: 107 | J108: 0
E109: 108 | J109: 0
E110: 109 | J110: 0
E111: 110 | J111: 0
E112: 111 | J112: 0
E113: 112 | J113: 0
E114: 113 | J114: 0
E115: 114 | J115: 0
E116: 115 | J116: 0
E117: 116 | J117: 0
E118: 117 | J118: 0
E119: 118 | J119: 0
E120: 119 | J120: 0
E121: 120 | J121: 0
E122: 121 | J122: 0
E123: 122 | J123: 0
E124: 123 | J124: 0
E125: 124 | J125: 0
E126: 125 | J126: 0
E127: 126 | J127: 0
E128: 127 | J128: 0
E129: 128 | J129: 0
E130: 129 | J130: 0
E131: 130 | J131: 0
E132: 131 | J132: 0
E133: 132 | J133: 0
E134: 133 | J134: 0
E135: 134 | J135: 0
E136: 135 | J136: 0
E137: 136 | J137: 0
E138: 137 | J138: 0
E139: 138 | J139: 0
E140: 139 | J140: 0
E141: 140 | J141: 0
E142: 141 | J142: 0
E143: 142 | J143: 0
E144: 143 | J144: 0
E145: 144 | J145: 0
E146: 145 | J146: 0
E147: 146 | J147: 0
E148: 147 | J148: 0
E149: 148 | J149: 0
E150: 149 | J150: 0
E151: 150 | J151: 0
E152: 151 | J152: 0
E153: 152 | J153: 0
E154: 153 | J154: 0
E155: 154 | J155: 0
E156: 155 | J156: 0
E157: 156 | J157: 0
E158: 157 | J158: 0
E159: 158 | J159: 0
E160: 159 | J160: 0
E161: 160 | J161: 0
E162: 161 | J162: 0
E163: 162 | J163: 0
E164: 163 | J164: 0
E165: 164 | J165: 0
E166: 165 | J166: 0
E167: 166 | J167: 0
E168: 167 | J168: =IF(OR(H168=5,H168=10, H168=15, H168="BP",H168="SCR"),"NT",I168) -> 0
E169: 168 | J169: 0
E170: 169 | J170: 0
E171: 170 | J171: 0
E172: 171 | J172: 0
E173: 172 | J173: 0
E174: 173 | J174: 0
E175: 174 | J175: 0
E176: 175 | J176: 0
E177: 176 | J177: 0
E178: 177 | J178: 0
E179: 178 | J179: 0
E180: 179 | J180: 0
E181: 180 | J181: 0
E182: 181 | J182: 0
E183: 182 | J183: 0
E184: 183 | J184: 0
E185: 184 | J185: 0
E186: 185 | J186: 0
E187: 186 | J187: 0
E188: 187 | J188: 0
E189: 188 | J189: 0
E190: 189 | J190: 0
E191: 190 | J191: 0
E192: 191 | J192: 0
E193: 192 | J193: 0
E194: 193 | J194: 0
E195: 194 | J195: 0
E196: 195 | J196: 0
E197: 196 | J197: 0
E198: 197 | J198: 0
E199: 198 | J199: 0
E200: 199 | J200: 0
... 101 more rows

Sheet Futurity
A1: Futurity | B1: Der | C1: Age Inct. | D1: BBR | E1: Draw | F1: Rider Name | G1: Horse Name | H1: c/o | I1: Time | J1: Final Time | K1: Placing | L1: Money Earned
E2: 1
E3: 2
E4: 3
E5: 4
E6: 5
E7: 6
E8: 7
E9: 8
E10: 9
E11: 10
E12: 11
E13: 12
E14: 13
E15: 14
E16: 15
E17: 16
E18: 17
E19: 18
E20: 19
E21: 20
E22: 21
E23: 22
E24: 23
E25: 24
E26: 25
E27: 26
E28: 27
E29: 28
E30: 29
E31: 30
E32: 31
E33: 32
E34: 33
E35: 34
E36: 35
E37: 36
E38: 37
E39: 38
E40: 39
E41: 40
E42: 41
E43: 42
E44: 43
E45: 44
E46: 45
E47: 46
E48: 47
E49: 48
E50: 49
E51: 50
E52: 51
E53: 52
E54: 53
E55: 54
E56: 55
E57: 56
E58: 57
E59: 58
E60: 59
E61: 60
E62: 61
E63: 62
E64: 63
E65: 64
E66: 65
E67: 66
E68: 67
E69: 68
E70: 69
E71: 70
E72: 71
E73: 72
E74: 73
E75: 74
E76: 75
E77: 76 | J77: =IF(OR(H77=5,H77=10, H77=15, H77="BP",H77="SCR"),"NT",I77) -> 0
E78: 77 | J78: 0
E79: 78 | J79: 0
E80: 79 | J80: 0
E81: 80 | J81: 0
E82: 81 | J82: 0
E83: 82 | J83: 0
E84: 83 | J84: 0
E85: 84 | J85: 0
E86: 85 | J86: 0
E87: 86 | J87: 0
E88: 87 | J88: 0
E89: 88 | J89: 0
E90: 89 | J90: 0
E91: 90 | J91: 0
E92: 91 | J92: 0
E93: 92 | J93: 0
E94: 93 | J94: 0
E95: 94 | J95: 0
E96: 95 | J96: =IF(OR(H96=5,H96=10, H96=15, H96="BP",H96="SCR"),"NT",I96) -> 0
E97: 96 | J97: 0
E98: 97 | J98: 0
E99: 98 | J99: 0
E100: 99 | J100: 0
E101: 100 | J101: 0
E102: 101 | J102: 0
E103: 102 | J103: 0
E104: 103 | J104: 0
E105: 104 | J105: 0
E106: 105 | J106: 0
E107: 106 | J107: 0
E108: 107 | J108: 0
E109: 108 | J109: 0
E110: 109 | J110: 0
E111: 110 | J111: 0
E112: 111 | J112: 0
E113: 112 | J113: 0
E114: 113 | J114: 0
E115: 114 | J115: 0
E116: 115 | J116: 0
E117: 116 | J117: 0
E118: 117 | J118: 0
E119: 118 | J119: 0
E120: 119 | J120: 0
E121: 120 | J121: 0
E122: 121 | J122: 0
E123: 122 | J123: 0
E124: 123 | J124: 0
E125: 124 | J125: 0
E126: 125 | J126: 0
E127: 126 | J127: 0
E128: 127 | J128: 0
E129: 128 | J129: 0
E130: 129 | J130: 0
E131: 130 | J131: 0
E132: 131 | J132: 0
E133: 132 | J133: 0
E134: 133 | J134: 0
E135: 134 | J135: 0
E136: 135 | J136: 0
E137: 136 | J137: 0
E138: 137 | J138: 0
E139: 138 | J139: 0
E140: 139 | J140: 0
E141: 140 | J141: 0
E142: 141 | J142: 0
E143: 142 | J143: 0
E144: 143 | J144: 0
E145: 144 | J145: 0
E146: 145 | J146: 0
E147: 146 | J147: 0
E148: 147 | J148: 0
E149: 148 | J149: 0
E150: 149 | J150: 0
E151: 150 | J151: 0
E152: 151 | J152: 0
E153: 152 | J153: 0
E154: 153 | J154: 0
E155: 154 | J155: 0
E156: 155 | J156: 0
E157: 156 | J157: 0
E158: 157 | J158: 0
E159: 158 | J159: 0
E160: 159 | J160: =IF(OR(H160=5,H160=10, H160=15, H160="BP",H160="SCR"),"NT",I160) -> 0
E161: 160 | J161: 0
E162: 161 | J162: 0
E163: 162 | J163: 0
E164: 163 | J164: 0
E165: 164 | J165: 0
E166: 165 | J166: 0
E167: 166 | J167: 0
E168: 167 | J168: 0
E169: 168 | J169: 0
E170: 169 | J170: 0
E171: 170 | J171: 0
E172: 171 | J172: 0
E173: 172 | J173: 0
E174: 173 | J174: 0
E175: 174 | J175: 0
E176: 175 | J176: 0
E177: 176 | J177: 0
E178: 177 | J178: 0
E179: 178 | J179: 0
E180: 179 | J180: 0
E181: 180 | J181: 0
E182: 181 | J182: 0
E183: 182 | J183: 0
E184: 183 | J184: 0
E185: 184 | J185: 0
E186: 185 | J186: 0
E187: 186 | J187: 0
E188: 187 | J188: 0
E189: 188 | J189: 0
E190: 189 | J190: 0
E191: 190 | J191: 0
E192: 191 | J192: 0
E193: 192 | J193: 0
E194: 193 | J194: 0
E195: 194 | J195: 0
E196: 195 | J196: 0
E197: 196 | J197: 0
E198: 197 | J198: 0
E199: 198 | J199: 0
E200: 199 | J200: 0
... 101 more rows

Sheet 12 & Under (hidden)
A1: Futurity | B1: Der | C1: Age Inct. | D1: R/O | E1: Draw | F1: Rider Name | G1: Horse Name | H1: Time | I1: Final Time | J1: Placing | K1: Money Earned
E33: 32
E34: 33
E35: 34
E36: 35
E37: 36
E38: 37
E39: 38
E40: 39
E41: 40
E42: 41
E43: 42
E44: 43
E45: 44
E46: 45
E47: 46
E48: 47
E49: 48
E50: 49
E51: 50
E52: 51
E53: 52
E54: 53
E55: 54
E56: 55
E57: 56
E58: 57
E59: 58
E60: 59
E61: 60
E62: 61
E63: 62
E64: 63
E65: 64
E66: 65
E67: 66
E68: 67
E69: 68
E70: 69
E71: 70
E72: 71
E73: 72
E74: 73
E75: 74
E76: 75
E77: 76
E78: 77
E79: 78
E80: 79
E81: 80
E82: 81
E83: 82
E84: 83
E85: 84
E86: 85
E87: 86
E88: 87
E89: 88
E90: 89
E91: 90
E92: 91
E93: 92
E94: 93
E95: 94
E96: 95
E97: 96
E98: 97
E99: 98
E100: 99
E101: 100
E102: 101
E103: 102
E104: 103
E105: 104
E106: 105
E107: 106
E108: 107
E109: 108
E110: 109
E111: 110
E112: 111
E113: 112
E114: 113
E115: 114
E116: 115
E117: 116
E118: 117
E119: 118
E120: 119
E121: 120
E122: 121
E123: 122
E124: 123
E125: 124
E126: 125
E127: 126
E128: 127
E129: 128
E130: 129
E131: 130
E132: 131
E133: 132
E134: 133
E135: 134
E136: 135
E137: 136
E138: 137
E139: 138
E140: 139
E141: 140
E142: 141
E143: 142
E144: 143
E145: 144
E146: 145
E147: 146
E148: 147
E149: 148
E150: 149
E151: 150
E152: 151
E153: 152
E154: 153
E155: 154
E156: 155
E157: 156
E158: 157
E159: 158
E160: 159
E161: 160
E162: 161
E163: 162
E164: 163
E165: 164
E166: 165
E167: 166
E168: 167
E169: 168
E170: 169
E171: 170
E172: 171
E173: 172
E174: 173
E175: 174
E176: 175
E177: 176
E178: 177
E179: 178
E180: 179
E181: 180
E182: 181
E183: 182
E184: 183
E185: 184
E186: 185
E187: 186
E188: 187
E189: 188
E190: 189
E191: 190
E192: 191
E193: 192
E194: 193
E195: 194
E196: 195
E197: 196
E198: 197
E199: 198
E200: 199
E201: 200
E202: 201
E203: 202
E204: 203
E205: 204
E206: 205
E207: 206
E208: 207
E209: 208
E210: 209
E211: 210
E212: 211
E213: 212
E214: 213
E215: 214
E216: 215
E217: 216
E218: 217
E219: 218
E220: 219
E221: 220
E222: 221
E223: 222
E224: 223
E225: 224
E226: 225
E227: 226
E228: 227
E229: 228
E230: 229
E231: 230
... 70 more rows

Sheet 8&under
A1: Draw | B1: Rider Name | C1: Horse Name | D1: Pen | E1: Time | F1: Final Time | G1: Placing | H1: Money Earned
A2: 1 | B2: Kylyn Baker | E2: 25.513
A3: 2 | B3: Jaidyn Ornelas | C3: Soldier | E3: 31.826
A4: 3 | B4: Adley Hardin | C4: Maggie | E4: 21.582
A5: 4 | B5: Sammy Wright | C5: Dusti | E5: nt
A6: 5 | B6: Blane Russell | C6: Chuck | E6: 20.376
A7: 6
A8: 7
A9: 8
A10: 9
A11: 10 | F11: =IF(OR(D11=5,D11=10, D11=15, D11="BP",D11="SCR"),"NT",E11) -> 0
A12: 11 | F12: 0
A13: 12 | F13: 0
A14: 13 | F14: 0
A15: 14 | F15: 0
A16: 15 | F16: 0
A17: 16 | F17: 0
A18: 17 | F18: 0
A19: 18 | F19: 0
A20: 19 | F20: 0
A21: 20 | F21: 0

Sheet Average
A1: Parker County Arena
A2: Open
A3: 4 Yr Fut | B3: 5 Yr Fut | C3: Der | D3: Age Inct. | E3: Am | F3: Carry | G3: T/C | H3: F/F | I3: Mem | J3: Nom | K3: Av | L3: BBR | M3: WPRA | N3: Draw | O3: Owner Name | P3: Rider Name | Q3: Horse Name | R3: Pen | S3: Time 1 | T3: Final Time 1 | U3: Pen | V3: Time 2 | W3: Final Time 2 | X3: Total Time | Y3: Average Time | Z3: Placing | AA3: Money Earned | AC3: D Placing | AE3: Split
N4: 1 | T4: =IF(OR(R4=5,R4=10, R4=15, R4="BP",R4="SCR"),"NT",S4) -> 0 | W4: =IF(OR(U4=5,U4=10, U4=15, U4="BP",U4="SCR"),"NT",V4) -> 0 | X4: =(T4+W4) -> 0 | Y4: =(T4+W4)/2 -> 0 | AC4: 1D
N5: 2 | T5: 0 | W5: 0 | X5: 0 | Y5: 0 | AC5: 2D | AD5: =$AD$4+$AE$5 -> 0.5 | AE5: 0.5
N6: 3 | T6: 0 | W6: 0 | X6: 0 | Y6: 0 | AC6: 3D | AD6: =$AD$5+$AE$6 -> 1 | AE6: 0.5
N7: 4 | T7: 0 | W7: 0 | X7: 0 | Y7: 0 | AC7: 4D | AD7: =$AD$6+$AE$7 -> 1.5 | AE7: 0.5
N8: 5 | T8: 0 | W8: 0 | X8: 0 | Y8: 0 | AC8: 5D | AD8: =$AD$7+$AE$8 -> 2 | AE8: 0.5
N9: 6 | T9: 0 | W9: 0 | X9: 0 | Y9: 0
N10: 7 | T10: 0 | W10: 0 | X10: 0 | Y10: 0 | AC10: # Entered
N11: 8 | T11: 0 | W11: 0 | X11: 0 | Y11: 0 | AC11: =COUNTA(P4:P503) -> 0
N12: 9 | T12: 0 | W12: 0 | X12: 0 | Y12: 0
N13: 10 | T13: 0 | W13: 0 | X13: 0 | Y13: 0
N14: 11 | T14: 0 | W14: 0 | X14: 0 | Y14: 0
N15: 12 | T15: 0 | W15: 0 | X15: 0 | Y15: 0
N16: 13 | T16: 0 | W16: 0 | X16: 0 | Y16: 0
N17: 14 | T17: =IF(OR(R17=5,R17=10, R17=15, R17="BP",R17="SCR"),"NT",S17) -> 0 | W17: =IF(OR(U17=5,U17=10, U17=15, U17="BP",U17="SCR"),"NT",V17) -> 0 | X17: =(T17+W17) -> 0 | Y17: =(T17+W17)/2 -> 0
N18: 15 | T18: 0 | W18: 0 | X18: 0 | Y18: 0
N19: 16 | T19: 0 | W19: 0 | X19: 0 | Y19: 0
N20: 17 | T20: 0 | W20: 0 | X20: 0 | Y20: 0
N21: 18 | T21: 0 | W21: 0 | X21: 0 | Y21: 0
N22: 19 | T22: 0 | W22: 0 | X22: 0 | Y22: 0
N23: 20 | T23: 0 | W23: 0 | X23: 0 | Y23: 0
N24: 21 | T24: 0 | W24: 0 | X24: 0 | Y24: 0
N25: 22 | T25: 0 | W25: 0 | X25: 0 | Y25: 0
N26: 23 | T26: 0 | W26: 0 | X26: 0 | Y26: 0
N27: 24 | T27: 0 | W27: 0 | X27: 0 | Y27: 0
N28: 25 | T28: 0 | W28: 0 | X28: 0 | Y28: 0
N29: 26 | T29: 0 | W29: 0 | X29: 0 | Y29: 0
N30: 27 | T30: 0 | W30: 0 | X30: 0 | Y30: 0
N31: 28 | T31: 0 | W31: 0 | X31: 0 | Y31: 0
N32: 29 | T32: 0 | W32: 0 | X32: 0 | Y32: 0
N33: 30 | T33: 0 | W33: 0 | X33: 0 | Y33: 0
N34: 31 | T34: 0 | W34: 0 | X34: 0 | Y34: 0
N35: 32 | T35: 0 | W35: 0 | X35: 0 | Y35: 0
N36: 33 | T36: 0 | W36: 0 | X36: 0 | Y36: 0
N37: 34 | T37: 0 | W37: 0 | X37: 0 | Y37: 0
N38: 35 | T38: 0 | W38: 0 | X38: 0 | Y38: 0
N39: 36 | T39: 0 | W39: 0 | X39: 0 | Y39: 0
N40: 37 | T40: 0 | W40: 0 | X40: 0 | Y40: 0
N41: 38 | T41: 0 | W41: 0 | X41: 0 | Y41: 0
N42: 39 | T42: 0 | W42: 0 | X42: 0 | Y42: 0
N43: 40 | T43: 0 | W43: 0 | X43: 0 | Y43: 0
N44: 41 | T44: 0 | W44: 0 | X44: 0 | Y44: 0
N45: 42 | T45: 0 | W45: 0 | X45: 0 | Y45: 0
N46: 43 | T46: 0 | W46: 0 | X46: 0 | Y46: 0
N47: 44 | T47: 0 | W47: 0 | X47: 0 | Y47: 0
N48: 45 | T48: 0 | W48: 0 | X48: 0 | Y48: 0
N49: 46 | T49: 0 | W49: 0 | X49: 0 | Y49: 0
N50: 47 | T50: 0 | W50: 0 | X50: 0 | Y50: 0
N51: 48 | T51: 0 | W51: 0 | X51: 0 | Y51: 0
N52: 49 | T52: 0 | W52: 0 | X52: 0 | Y52: 0
N53: 50 | T53: 0 | W53: 0 | X53: 0 | Y53: 0
N54: 51 | T54: 0 | W54: 0 | X54: 0 | Y54: 0
N55: 52 | T55: 0 | W55: 0 | X55: 0 | Y55: 0
N56: 53 | T56: 0 | W56: 0 | X56: 0 | Y56: 0
N57: 54 | T57: 0 | W57: 0 | X57: 0 | Y57: 0
N58: 55 | T58: 0 | W58: 0 | X58: 0 | Y58: 0
N59: 56 | T59: 0 | W59: 0 | X59: 0 | Y59: 0
N60: 57 | T60: 0 | W60: 0 | X60: 0 | Y60: 0
N61: 58 | T61: 0 | W61: 0 | X61: 0 | Y61: 0
N62: 59 | T62: 0 | W62: 0 | X62: 0 | Y62: 0
N63: 60 | T63: 0 | W63: 0 | X63: 0 | Y63: 0
N64: 61 | T64: 0 | W64: 0 | X64: 0 | Y64: 0
N65: 62 | T65: 0 | W65: 0 | X65: 0 | Y65: 0
N66: 63 | T66: 0 | W66: 0 | X66: 0 | Y66: 0
N67: 64 | T67: 0 | W67: 0 | X67: 0 | Y67: 0
N68: 65 | T68: 0 | W68: 0 | X68: 0 | Y68: 0
N69: 66 | T69: =IF(OR(R69=5,R69=10, R69=15, R69="BP",R69="SCR"),"NT",S69) -> 0 | W69: =IF(OR(U69=5,U69=10, U69=15, U69="BP",U69="SCR"),"NT",V69) -> 0 | X69: =(T69+W69) -> 0 | Y69: =(T69+W69)/2 -> 0
N70: 67 | T70: 0 | W70: 0 | X70: 0 | Y70: 0
N71: 68 | T71: 0 | W71: 0 | X71: 0 | Y71: 0
N72: 69 | T72: 0 | W72: 0 | X72: 0 | Y72: 0
N73: 70 | T73: 0 | W73: 0 | X73: 0 | Y73: 0
N74: 71 | T74: 0 | W74: 0 | X74: 0 | Y74: 0
N75: 72 | T75: 0 | W75: 0 | X75: 0 | Y75: 0
N76: 73 | T76: 0 | W76: 0 | X76: 0 | Y76: 0
N77: 74 | T77: 0 | W77: 0 | X77: 0 | Y77: 0
N78: 75 | T78: 0 | W78: 0 | X78: 0 | Y78: 0
N79: 76 | T79: 0 | W79: 0 | X79: 0 | Y79: 0
N80: 77 | T80: 0 | W80: 0 | X80: 0 | Y80: 0
N81: 78 | T81: 0 | W81: 0 | X81: 0 | Y81: 0
N82: 79 | T82: 0 | W82: 0 | X82: 0 | Y82: 0
N83: 80 | T83: 0 | W83: 0 | X83: 0 | Y83: 0
N84: 81 | T84: 0 | W84: 0 | X84: 0 | Y84: 0
N85: 82 | T85: 0 | W85: 0 | X85: 0 | Y85: 0
N86: 83 | T86: 0 | W86: 0 | X86: 0 | Y86: 0
N87: 84 | T87: 0 | W87: 0 | X87: 0 | Y87: 0
N88: 85 | T88: 0 | W88: 0 | X88: 0 | Y88: 0
N89: 86 | T89: 0 | W89: 0 | X89: 0 | Y89: 0
N90: 87 | T90: 0 | W90: 0 | X90: 0 | Y90: 0
N91: 88 | T91: 0 | W91: 0 | X91: 0 | Y91: 0
N92: 89 | T92: 0 | W92: 0 | X92: 0 | Y92: 0
N93: 90 | T93: 0 | W93: 0 | X93: 0 | Y93: 0
N94: 91 | T94: 0 | W94: 0 | X94: 0 | Y94: 0
N95: 92 | T95: 0 | W95: 0 | X95: 0 | Y95: 0
N96: 93 | T96: 0 | W96: 0 | X96: 0 | Y96: 0
N97: 94 | T97: 0 | W97: 0 | X97: 0 | Y97: 0
N98: 95 | T98: 0 | W98: 0 | X98: 0 | Y98: 0
N99: 96 | T99: 0 | W99: 0 | X99: 0 | Y99: 0
N100: 97 | T100: 0 | W100: 0 | X100: 0 | Y100: 0
N101: 98 | T101: 0 | W101: 0 | X101: 0 | Y101: 0
N102: 99 | T102: 0 | W102: 0 | X102: 0 | Y102: 0
N103: 100 | T103: 0 | W103: 0 | X103: 0 | Y103: 0
N104: 101 | T104: 0 | W104: 0 | X104: 0 | Y104: 0
N105: 102 | T105: 0 | W105: 0 | X105: 0 | Y105: 0
N106: 103 | T106: 0 | W106: 0 | X106: 0 | Y106: 0
N107: 104 | T107: 0 | W107: 0 | X107: 0 | Y107: 0
N108: 105 | T108: 0 | W108: 0 | X108: 0 | Y108: 0
N109: 106 | T109: 0 | W109: 0 | X109: 0 | Y109: 0
N110: 107 | T110: 0 | W110: 0 | X110: 0 | Y110: 0
N111: 108 | T111: 0 | W111: 0 | X111: 0 | Y111: 0
N112: 109 | T112: 0 | W112: 0 | X112: 0 | Y112: 0
N113: 110 | T113: 0 | W113: 0 | X113: 0 | Y113: 0
N114: 111 | T114: 0 | W114: 0 | X114: 0 | Y114: 0
N115: 112 | T115: 0 | W115: 0 | X115: 0 | Y115: 0
N116: 113 | T116: 0 | W116: 0 | X116: 0 | Y116: 0
N117: 114 | T117: 0 | W117: 0 | X117: 0 | Y117: 0
N118: 115 | T118: 0 | W118: 0 | X118: 0 | Y118: 0
N119: 116 | T119: 0 | W119: 0 | X119: 0 | Y119: 0
N120: 117 | T120: 0 | W120: 0 | X120: 0 | Y120: 0
N121: 118 | T121: 0 | W121: 0 | X121: 0 | Y121: 0
N122: 119 | T122: 0 | W122: 0 | X122: 0 | Y122: 0
N123: 120 | T123: 0 | W123: 0 | X123: 0 | Y123: 0
N124: 121 | T124: 0 | W124: 0 | X124: 0 | Y124: 0
N125: 122 | T125: 0 | W125: 0 | X125: 0 | Y125: 0
N126: 123 | T126: 0 | W126: 0 | X126: 0 | Y126: 0
N127: 124 | T127: 0 | W127: 0 | X127: 0 | Y127: 0
N128: 125 | T128: 0 | W128: 0 | X128: 0 | Y128: 0
N129: 126 | T129: 0 | W129: 0 | X129: 0 | Y129: 0
N130: 127 | T130: 0 | W130: 0 | X130: 0 | Y130: 0
N131: 128 | T131: 0 | W131: 0 | X131: 0 | Y131: 0
N132: 129 | T132: 0 | W132: 0 | X132: 0 | Y132: 0
N133: 130 | T133: =IF(OR(R133=5,R133=10, R133=15, R133="BP",R133="SCR"),"NT",S133) -> 0 | W133: =IF(OR(U133=5,U133=10, U133=15, U133="BP",U133="SCR"),"NT",V133) -> 0 | X133: =(T133+W133) -> 0 | Y133: =(T133+W133)/2 -> 0
N134: 131 | T134: 0 | W134: 0 | X134: 0 | Y134: 0
N135: 132 | T135: 0 | W135: 0 | X135: 0 | Y135: 0
N136: 133 | T136: 0 | W136: 0 | X136: 0 | Y136: 0
N137: 134 | T137: 0 | W137: 0 | X137: 0 | Y137: 0
N138: 135 | T138: 0 | W138: 0 | X138: 0 | Y138: 0
N139: 136 | T139: 0 | W139: 0 | X139: 0 | Y139: 0
N140: 137 | T140: 0 | W140: 0 | X140: 0 | Y140: 0
N141: 138 | T141: 0 | W141: 0 | X141: 0 | Y141: 0
N142: 139 | T142: 0 | W142: 0 | X142: 0 | Y142: 0
N143: 140 | T143: 0 | W143: 0 | X143: 0 | Y143: 0
N144: 141 | T144: 0 | W144: 0 | X144: 0 | Y144: 0
N145: 142 | T145: 0 | W145: 0 | X145: 0 | Y145: 0
N146: 143 | T146: 0 | W146: 0 | X146: 0 | Y146: 0
N147: 144 | T147: 0 | W147: 0 | X147: 0 | Y147: 0
N148: 145 | T148: 0 | W148: 0 | X148: 0 | Y148: 0
N149: 146 | T149: 0 | W149: 0 | X149: 0 | Y149: 0
N150: 147 | T150: 0 | W150: 0 | X150: 0 | Y150: 0
N151: 148 | T151: 0 | W151: 0 | X151: 0 | Y151: 0
N152: 149 | T152: 0 | W152: 0 | X152: 0 | Y152: 0
N153: 150 | T153: 0 | W153: 0 | X153: 0 | Y153: 0
N154: 151 | T154: 0 | W154: 0 | X154: 0 | Y154: 0
N155: 152 | T155: 0 | W155: 0 | X155: 0 | Y155: 0
N156: 153 | T156: 0 | W156: 0 | X156: 0 | Y156: 0
N157: 154 | T157: 0 | W157: 0 | X157: 0 | Y157: 0
N158: 155 | T158: 0 | W158: 0 | X158: 0 | Y158: 0
N159: 156 | T159: 0 | W159: 0 | X159: 0 | Y159: 0
N160: 157 | T160: 0 | W160: 0 | X160: 0 | Y160: 0
N161: 158 | T161: 0 | W161: 0 | X161: 0 | Y161: 0
N162: 159 | T162: 0 | W162: 0 | X162: 0 | Y162: 0
N163: 160 | T163: 0 | W163: 0 | X163: 0 | Y163: 0
N164: 161 | T164: 0 | W164: 0 | X164: 0 | Y164: 0
N165: 162 | T165: 0 | W165: 0 | X165: 0 | Y165: 0
N166: 163 | T166: 0 | W166: 0 | X166: 0 | Y166: 0
N167: 164 | T167: 0 | W167: 0 | X167: 0 | Y167: 0
N168: 165 | T168: 0 | W168: 0 | X168: 0 | Y168: 0
N169: 166 | T169: 0 | W169: 0 | X169: 0 | Y169: 0
N170: 167 | T170: 0 | W170: 0 | X170: 0 | Y170: 0
N171: 168 | T171: 0 | W171: 0 | X171: 0 | Y171: 0
N172: 169 | T172: 0 | W172: 0 | X172: 0 | Y172: 0
N173: 170 | T173: 0 | W173: 0 | X173: 0 | Y173: 0
N174: 171 | T174: 0 | W174: 0 | X174: 0 | Y174: 0
N175: 172 | T175: 0 | W175: 0 | X175: 0 | Y175: 0
N176: 173 | T176: 0 | W176: 0 | X176: 0 | Y176: 0
N177: 174 | T177: 0 | W177: 0 | X177: 0 | Y177: 0
N178: 175 | T178: 0 | W178: 0 | X178: 0 | Y178: 0
N179: 176 | T179: 0 | W179: 0 | X179: 0 | Y179: 0
N180: 177 | T180: 0 | W180: 0 | X180: 0 | Y180: 0
N181: 178 | T181: 0 | W181: 0 | X181: 0 | Y181: 0
N182: 179 | T182: 0 | W182: 0 | X182: 0 | Y182: 0
N183: 180 | T183: 0 | W183: 0 | X183: 0 | Y183: 0
N184: 181 | T184: 0 | W184: 0 | X184: 0 | Y184: 0
N185: 182 | T185: 0 | W185: 0 | X185: 0 | Y185: 0
N186: 183 | T186: 0 | W186: 0 | X186: 0 | Y186: 0
N187: 184 | T187: 0 | W187: 0 | X187: 0 | Y187: 0
N188: 185 | T188: 0 | W188: 0 | X188: 0 | Y188: 0
N189: 186 | T189: 0 | W189: 0 | X189: 0 | Y189: 0
N190: 187 | T190: 0 | W190: 0 | X190: 0 | Y190: 0
N191: 188 | T191: 0 | W191: 0 | X191: 0 | Y191: 0
N192: 189 | T192: 0 | W192: 0 | X192: 0 | Y192: 0
N193: 190 | T193: 0 | W193: 0 | X193: 0 | Y193: 0
N194: 191 | T194: 0 | W194: 0 | X194: 0 | Y194: 0
N195: 192 | T195: 0 | W195: 0 | X195: 0 | Y195: 0
N196: 193 | T196: 0 | W196: 0 | X196: 0 | Y196: 0
N197: 194 | T197: =IF(OR(R197=5,R197=10, R197=15, R197="BP",R197="SCR"),"NT",S197) -> 0 | W197: =IF(OR(U197=5,U197=10, U197=15, U197="BP",U197="SCR"),"NT",V197) -> 0 | X197: =(T197+W197) -> 0 | Y197: =(T197+W197)/2 -> 0
N198: 195 | T198: 0 | W198: 0 | X198: 0 | Y198: 0
N199: 196 | T199: 0 | W199: 0 | X199: 0 | Y199: 0
N200: 197 | T200: 0 | W200: 0 | X200: 0 | Y200: 0
... 303 more rows

Sheet BFA 2D Payout (hidden)
A1: BFA 2D Payout
A2: Entry Fee | B2: # Entries | C2: % Payback | D2: Added $ | E2: Total Payout | F2: Each Go
A3: 25 | B3: 19 | C3: 0.8 | D3: 200 | E3: =(A3*$C$3)*B3+D3 -> 580 | F3: 0.3
F4: =$E$3*$F$3 -> 174
A5: $5,000-7,500 Pays 5 Places 4 to 1D 1 to 2D
A6: Placings | B6: 1D | D6: 2D
A7: 1st | B7: =($F$4*$C$7) -> 57.42 | C7: 0.33 | D7: =$F$4*$E$7 -> 12.18 | E7: 0.07
A8: 2nd | B8: =$F$4*$C$8 -> 46.98 | C8: 0.27
A9: 3rd | B9: =$F$4*$C$9 -> 34.8 | C9: 0.2
A10: 4th | B10: =$F$4*$C$10 -> 22.62 | C10: 0.13
A11: Totals | B11: =SUM(B7:B10) -> 161.82 | D11: =SUM(D7:D10) -> 12.18 | E11: =(C7+C8+C9+C10+E7+E8) -> 1
A12: =B11+D11 -> 174
A13: $7,501 - 10,000 Pays 6 Places 4 to 1D, 2 to 2D
A14: Placings | B14: 1D | D14: 2D
A15: 1st | B15: =$F$4*$C$15 -> 50.46 | C15: 0.29 | D15: =$F$4*$E$15 -> 15.66 | E15: 0.09
A16: 2nd | B16: =+$F$4*$C$16 -> 41.76 | C16: 0.24 | D16: =F4*E16 -> 8.7 | E16: 0.05
A17: 3rd | B17: =$F$4*$C$17 -> 33.06 | C17: 0.19
A18: 4th | B18: =$F$4*$C$18 -> 24.36 | C18: 0.14
A19: Totals | B19: =SUM(B15:B18) -> 149.64 | D19: =D16+D15 -> 24.36 | E19: =SUM(C15+C16+C17+C18+E15+E16) -> 1
A20: =D19+B19 -> 174
A21: $10,001 - $15,000 Payes 8 Places 5 to 1D, 3 to 2D
A22: Placings | B22: 1D | D22: 2D
A23: 1st | B23: =F4*C23 -> 41.76 | C23: 0.24 | D23: =F4*E23 -> 12.18 | E23: 0.07
A24: 2nd | B24: =F4*C24 -> 34.8 | C24: 0.2 | D24: =F4*E24 -> 8.7 | E24: 0.05
A25: 3rd | B25: =F4*C25 -> 29.58 | C25: 0.17 | D25: =F4*E25 -> 6.96 | E25: 0.04
A26: 4th | B26: =F4*C26 -> 22.62 | C26: 0.13
A27: 5th | B27: =F4*C27 -> 17.4 | C27: 0.1
A28: Totals | B28: =SUM(B23:B27) -> 146.16 | D28: =SUM(D23:D27) -> 27.84 | E28: =C23+C24+C25+C26+C27+E23+E24+E25 -> 1
A29: =B28+D28 -> 174
A30: $15,001 - $25,000 Payes 11 Places 7 to 1D, 4 to 2D
A31: Placings | B31: 1D | D31: 2D
A32: 1st | B32: =$F$4*C32 -> 36.54 | C32: 0.21 | D32: =$F$4*E32 -> 8.7 | E32: 0.05
A33: 2nd | B33: =$F$4*C33 -> 31.32 | C33: 0.18 | D33: =$F$4*E33 -> 6.96 | E33: 0.04
A34: 3rd | B34: 26.1 | C34: 0.15 | D34: 5.22 | E34: 0.03
A35: 4th | B35: 19.14 | C35: 0.11 | D35: 3.48 | E35: 0.02
A36: 5th | B36: 13.92 | C36: 0.08
A37: 6th | B37: 12.18 | C37: 0.07
A38: 7th | B38: 10.44 | C38: 0.06
A39: Totals | B39: =SUM(B32:B38) -> 149.64 | D39: =SUM(D32:D38) -> 24.36 | E39: =C32+C33+C34+C35+C36+C37+C38+E32+E33+E34+E35 -> 1
A40: =SUM(B39+D39) -> 174
A41: $25,001 - $35,000 Payes 12 Places 8 to 1D, 4 to 2D
A42: Placings | B42: 1D | D42: 2D
A43: 1st | B43: =$F$4*C43 -> 33.06 | C43: 0.19 | D43: =$F$4*E43 -> 8.7 | E43: 0.05
A44: 2nd | B44: =$F$4*C44 -> 26.1 | C44: 0.15 | D44: =$F$4*E44 -> 6.96 | E44: 0.04
A45: 3rd | B45: 20.88 | C45: 0.12 | D45: 5.22 | E45: 0.03
A46: 4th | B46: 17.4 | C46: 0.1 | D46: 3.48 | E46: 0.02
A47: 5th | B47: 15.66 | C47: 0.09
A48: 6th | B48: 13.92 | C48: 0.08
A49: 7th | B49: 12.18 | C49: 0.07
A50: 8th | B50: 10.44 | C50: 0.06
A51: Totals | B51: =SUM(B43:B50) -> 149.64 | D51: =SUM(D43:D46) -> 24.36 | E51: =C43+C44+C45+C46+C47+C48+C49+C50+E43+E44+E45+E46 -> 1
A52: =D51+B51 -> 174

Sheet 2D Payout
A1: 2D Payout
A2: Entry Fee | B2: # Entries | C2: % Payback | D2: Added $ | E2: Total Payout
A3: 50 | B3: 75 | C3: 0.8 | D3: 1500 | E3: =(A3*$C$3)*B3+D3 -> 4500
A5: % in each D | B5: 0.7 | C5: 0.3 | D5: Total % = | E5: =SUM(B5:C5) -> 1
B6: 1D | C6: 2D
B7: =(($A$3*$B$3*$C$3*$B$5)+($D$3*$B$5)) -> 3150 | C7: =(($A$3*$B$3*$C$3*$C$5)+($D$3*$C$5)) -> 1350
A8: Totals | B8: =SUM(B7) -> 3150 | C8: =SUM(C7) -> 1350 | D8: =SUM(B8:C8) -> 4500
A10: For 1-7 riders 1 place
A11: Placings | B11: 1D | C11: 2D
A12: 1st | B12: =$B$7*$E$12 -> 3150 | C12: =$C$7*$E$5 -> 1350 | D12: è | E12: 1
A13: Totals | B13: =SUM(B12:B12) -> 3150 | C13: =SUM(C12:C12) -> 1350 | D13: =SUM(B13:C13) -> 4500 | E13: =SUM(E12) -> 1
A15: For 8-11 riders 2 places
A16: Placings | B16: 1D | C16: 2D
A17: 1st | B17: =$B$7*$E$17 -> 1890 | C17: =$C$7*$E$17 -> 810 | D17: è | E17: 0.6
A18: 2nd | B18: =$B$7*$E$18 -> 1260 | C18: =$C$7*$E$18 -> 540 | D18: è | E18: 0.4
A19: Totals | B19: =SUM(B17:B18) -> 3150 | C19: =SUM(C17:C18) -> 1350 | D19: =SUM(B19:C19) -> 4500 | E19: =SUM(E17:E18) -> 1
A21: For 12-15 riders 3 places
A22: Placings | B22: 1D | C22: 2D
A23: 1st | B23: =$B$7*$E$23 -> 1575 | C23: =$C$7*$E$23 -> 675 | D23: è | E23: 0.5
A24: 2nd | B24: =$B$7*$E$24 -> 945 | C24: =$C$7*$E$24 -> 405 | D24: è | E24: 0.3
A25: 3rd | B25: =$B$7*$E$25 -> 630 | C25: =$C$7*$E$25 -> 270 | D25: è | E25: 0.2
A26: Totals | B26: =SUM(B23:B25) -> 3150 | C26: =SUM(C23:C25) -> 1350 | D26: =SUM(B26:C26) -> 4500 | E26: =SUM(E23:E25) -> 1
A28: For 16-19 riders 4 places
A29: Placings | B29: 1D | C29: 2D
A30: 1st | B30: =$B$7*$E$30 -> 1260 | C30: =$C$7*$E$30 -> 540 | D30: è | E30: 0.4
A31: 2nd | B31: =$B$7*$E$31 -> 945 | C31: =$C$7*$E$31 -> 405 | D31: è | E31: 0.3
A32: 3rd | B32: =$B$7*$E$32 -> 630 | C32: =$C$7*$E$32 -> 270 | D32: è | E32: 0.2
A33: 4th | B33: =$B$7*$E$33 -> 315 | C33: =$C$7*$E$33 -> 135 | D33: è | E33: 0.1
A34: Totals | B34: =SUM(B30:B33) -> 3150 | C34: =SUM(C30:C33) -> 1350 | D34: =SUM(B34:C34) -> 4500 | E34: =SUM(E30:E33) -> 1
A36: For 20-23 riders 5 places
A37: Placings | B37: 1D | C37: 2D
A38: 1st | B38: =$B$7*$E$38 -> 945 | C38: =$C$7*$E$38 -> 405 | D38: è | E38: 0.3
A39: 2nd | B39: =$B$7*$E$39 -> 787.5 | C39: =$C$7*$E$39 -> 337.5 | D39: è | E39: 0.25
A40: 3rd | B40: =$B$7*$E$40 -> 630 | C40: =$C$7*$E$40 -> 270 | D40: è | E40: 0.2
A41: 4th | B41: =$B$7*$E$41 -> 472.5 | C41: =$C$7*$E$41 -> 202.5 | D41: è | E41: 0.15
A42: 5th | B42: =$B$7*$E$42 -> 315 | C42: =$C$7*$E$42 -> 135 | D42: è | E42: 0.1
A43: Totals | B43: =SUM(B38:B42) -> 3150 | C43: =SUM(C38:C42) -> 1350 | D43: =SUM(B43:C43) -> 4500 | E43: =SUM(E38:E42) -> 1
A45: For 24-27 riders 6 places
A46: Placings | B46: 1D | C46: 2D
A47: 1st | B47: =$B$7*$E$47 -> 787.5 | C47: =$C$7*$E$47 -> 337.5 | D47: è | E47: 0.25
A48: 2nd | B48: =$B$7*$E$48 -> 630 | C48: =$C$7*$E$48 -> 270 | D48: è | E48: 0.2
A49: 3rd | B49: =$B$7*$E$49 -> 567 | C49: =$C$7*$E$49 -> 243 | D49: è | E49: 0.18
A50: 4th | B50: =$B$7*$E$50 -> 472.5 | C50: =$C$7*$E$50 -> 202.5 | D50: è | E50: 0.15
A51: 5th | B51: =$B$7*$E$51 -> 378 | C51: =$C$7*$E$51 -> 162 | D51: è | E51: 0.12
A52: 6th | B52: =$B$7*$E$52 -> 315 | C52: =$C$7*$E$52 -> 135 | D52: è | E52: 0.1
A53: Totals | B53: =SUM(B47:B52) -> 3150 | C53: =SUM(C47:C52) -> 1350 | D53: =SUM(B53:C53) -> 4500 | E53: =SUM(E47:E52) -> 1
A55: For 28-31 riders 7 places
A56: Placings | B56: 1D | C56: 2D
A57: 1st | B57: =$B$7*$E$57 -> 693 | C57: =$C$7*$E$57 -> 297 | D57: è | E57: 0.22
A58: 2nd | B58: =$B$7*$E$58 -> 567 | C58: =$C$7*$E$58 -> 243 | D58: è | E58: 0.18
A59: 3rd | B59: =$B$7*$E$59 -> 504 | C59: =$C$7*$E$59 -> 216 | D59: è | E59: 0.16
A60: 4th | B60: =$B$7*$E$60 -> 441 | C60: =$C$7*$E$60 -> 189 | D60: è | E60: 0.14
A61: 5th | B61: =$B$7*$E$61 -> 378 | C61: =$C$7*$E$61 -> 162 | D61: è | E61: 0.12
A62: 6th | B62: =$B$7*$E$62 -> 315 | C62: =$C$7*$E$62 -> 135 | D62: è | E62: 0.1
A63: 7th | B63: =$B$7*$E$63 -> 252 | C63: =$C$7*$E$63 -> 108 | D63: è | E63: 0.08
A64: Totals | B64: =SUM(B57:B63) -> 3150 | C64: =SUM(C57:C63) -> 1350 | D64: =SUM(B64:C64) -> 4500 | E64: =SUM(E57:E63) -> 1
A66: For 32 or more riders 8 places
A67: Placings | B67: 1D | C67: 2D
A68: 1st | B68: =$B$7*$E$68 -> 724.5 | C68: =$C$7*$E$68 -> 310.5 | D68: è | E68: 0.23
A69: 2nd | B69: =$B$7*$E$69 -> 630 | C69: =$C$7*$E$69 -> 270 | D69: è | E69: 0.2
A70: 3rd | B70: =$B$7*$E$70 -> 535.5 | C70: =$C$7*$E$70 -> 229.5 | D70: è | E70: 0.17
A71: 4th | B71: =$B$7*$E$71 -> 441 | C71: =$C$7*$E$71 -> 189 | D71: è | E71: 0.14
A72: 5th | B72: =$B$7*$E$72 -> 346.5 | C72: =$C$7*$E$72 -> 148.5 | D72: è | E72: 0.11
A73: 6th | B73: =$B$7*$E$73 -> 252 | C73: =$C$7*$E$73 -> 108 | D73: è | E73: 0.08
A74: 7th | B74: =$B$7*$E$74 -> 157.5 | C74: =$C$7*$E$74 -> 67.5 | D74: è | E74: 0.05
A75: 8th | B75: =$B$7*$E$75 -> 63 | C75: =$C$7*$E$75 -> 27 | D75: è | E75: 0.02
A76: Totals | B76: =SUM(B68:B75) -> 3150 | C76: =SUM(C68:C75) -> 1350 | D76: =SUM(B76:C76) -> 4500 | E76: =SUM(E68:E75) -> 1

Sheet 3D Payout (hidden)
A1: 3D Payout
A2: Entry Fee | B2: # Entries | C2: % Payback | D2: $ From Entry | E2: Added $ | F2: Total Payout
A3: 10 | B3: 3 | C3: 0.8 | D3: =$A$3*$C$3*$B$3 -> 24 | F3: =$D$3+$E$3 -> 24
A5: % in each D | B5: 0.5 | C5: 0.3 | D5: 0.2 | E5: Total % = | F5: =SUM(B5:D5) -> 1
B6: 1D | C6: 2D | D6: 3D
B7: =(($A$3*$B$3*$C$3*$B$5)+($E$3*$B$5)) -> 12 | C7: =(($A$3*$B$3*$C$3*$C$5)+($E$3*$C$5)) -> 7.2 | D7: =(($A$3*$B$3*$C$3*$D$5)+($E$3*$D$5)) -> 4.8
A8: Totals | B8: =SUM(B7) -> 12 | C8: =SUM(C7) -> 7.2 | D8: 4.8 | E8: =SUM(B8:D8) -> 24
A10: For 1-10 riders 1 place
A11: Placings | B11: 1D | C11: 2D | D11: 3D
A12: 1st | B12: =$B$7*$F$12 -> 12 | C12: =$C$7*$F$12 -> 7.2 | D12: =$D$7*$F$12 -> 4.8 | E12: è | F12: 1
A13: Totals | B13: =SUM(B12:B12) -> 12 | C13: =SUM(C12:C12) -> 7.2 | D13: =SUM(D12:D12) -> 4.8 | E13: =SUM(B13:D13) -> 24 | F13: =SUM(F12) -> 1
A15: For 11-15 riders 2 places
A16: Placings | B16: 1D | C16: 2D | D16: 3D
A17: 1st | B17: =$B$7*$F$17 -> 7.2 | C17: =$C$7*$F$17 -> 4.32 | D17: =$D$7*$F$17 -> 2.88 | E17: è | F17: 0.6
A18: 2nd | B18: =$B$7*$F$18 -> 4.8 | C18: =$C$7*$F$18 -> 2.88 | D18: =$D$7*$F$18 -> 1.92 | E18: è | F18: 0.4
A19: Totals | B19: =SUM(B17:B18) -> 12 | C19: =SUM(C17:C18) -> 7.2 | D19: =SUM(D17:D18) -> 4.8 | E19: =SUM(B19:D19) -> 24 | F19: =SUM(F17:F18) -> 1
A21: For 16-30 riders 3 places
A22: Placings | B22: 1D | C22: 2D | D22: 3D
A23: 1st | B23: =$B$7*$F$23 -> 6 | C23: =$C$7*$F$23 -> 3.6 | D23: =$D$7*$F$23 -> 2.4 | E23: è | F23: 0.5
A24: 2nd | B24: =$B$7*$F$24 -> 3.6 | C24: =$C$7*$F$24 -> 2.16 | D24: =$D$7*$F$24 -> 1.44 | E24: è | F24: 0.3
A25: 3rd | B25: =$B$7*$F$25 -> 2.4 | C25: =$C$7*$F$25 -> 1.44 | D25: =$D$7*$F$25 -> 0.96 | E25: è | F25: 0.2
A26: Totals | B26: =SUM(B23:B25) -> 12 | C26: =SUM(C23:C25) -> 7.2 | D26: =SUM(D22:D25) -> 4.8 | E26: =SUM(B26:D26) -> 24 | F26: =SUM(F23:F25) -> 1
A28: For 31-60 riders 4 places
A29: Placings | B29: 1D | C29: 2D | D29: 3D
A30: 1st | B30: =$B$7*$F$30 -> 5.04 | C30: =$C$7*$F$30 -> 3.024 | D30: =$D$7*$F$30 -> 2.016 | E30: è | F30: 0.42
A31: 2nd | B31: =$B$7*$F$31 -> 3.48 | C31: =$C$7*$F$31 -> 2.088 | D31: =$D$7*$F$31 -> 1.392 | E31: è | F31: 0.29
A32: 3rd | B32: =$B$7*$F$32 -> 2.28 | C32: =$C$7*$F$32 -> 1.368 | D32: =$D$7*$F$32 -> 0.912 | E32: è | F32: 0.19
A33: 4th | B33: =$B$7*$F$33 -> 1.2 | C33: =$C$7*$F$33 -> 0.72 | D33: =$D$7*$F$33 -> 0.48 | E33: è | F33: 0.1
A34: Totals | B34: =SUM(B30:B33) -> 12 | C34: =SUM(C30:C33) -> 7.2 | D34: =SUM(D30:D33) -> 4.8 | E34: =SUM(B34:D34) -> 24 | F34: =SUM(F30:F33) -> 1
A36: For 61-90 riders 5 places
A37: Placings | B37: 1D | C37: 2D | D37: 3D
A38: 1st | B38: =$B$7*$F$38 -> 4.56 | C38: =$C$7*$F$38 -> 2.736 | D38: =$D$7*$F$38 -> 1.824 | E38: è | F38: 0.38
A39: 2nd | B39: =$B$7*$F$39 -> 3.36 | C39: =$C$7*$F$39 -> 2.016 | D39: =$D$7*$F$39 -> 1.344 | E39: è | F39: 0.28
A40: 3rd | B40: =$B$7*$F$40 -> 2.16 | C40: =$C$7*$F$40 -> 1.296 | D40: =$D$7*$F$40 -> 0.864 | E40: è | F40: 0.18
A41: 4th | B41: =$B$7*$F$41 -> 1.2 | C41: =$C$7*$F$41 -> 0.72 | D41: =$D$7*$F$41 -> 0.48 | E41: è | F41: 0.1
A42: 5th | B42: =$B$7*$F$42 -> 0.72 | C42: =$C$7*$F$42 -> 0.432 | D42: =$D$7*$F$42 -> 0.288 | E42: è | F42: 0.06
A43: Totals | B43: =SUM(B38:B42) -> 12 | C43: =SUM(C38:C42) -> 7.2 | D43: =SUM(D38:D42) -> 4.8 | E43: =SUM(B43:D43) -> 24 | F43: =SUM(F38:F42) -> 1
A45: For 91-120 riders 6 places
A46: Placings | B46: 1D | C46: 2D | D46: 3D
A47: 1st | B47: =$B$7*$F$47 -> 4.32 | C47: =$C$7*$F$47 -> 2.592 | D47: =$D$7*$F$47 -> 1.728 | E47: è | F47: 0.36
A48: 2nd | B48: =$B$7*$F$48 -> 3.12 | C48: =$C$7*$F$48 -> 1.872 | D48: =$D$7*$F$48 -> 1.248 | E48: è | F48: 0.26
A49: 3rd | B49: =$B$7*$F$49 -> 1.92 | C49: =$C$7*$F$49 -> 1.152 | D49: =$D$7*$F$49 -> 0.768 | E49: è | F49: 0.16
A50: 4th | B50: =$B$7*$F$50 -> 1.2 | C50: =$C$7*$F$50 -> 0.72 | D50: =$D$7*$F$50 -> 0.48 | E50: è | F50: 0.1
A51: 5th | B51: =$B$7*$F$51 -> 0.84 | C51: =$C$7*$F$51 -> 0.504 | D51: =$D$7*$F$51 -> 0.336 | E51: è | F51: 0.07
A52: 6th | B52: =$B$7*$F$52 -> 0.6 | C52: =$C$7*$F$52 -> 0.36 | D52: =$D$7*$F$52 -> 0.24 | E52: è | F52: 0.05
A53: Totals | B53: =SUM(B47:B52) -> 12 | C53: =SUM(C47:C52) -> 7.2 | D53: =SUM(D47:D52) -> 4.8 | E53: =SUM(B53:D53) -> 24 | F53: =SUM(F47:F52) -> 1
A55: For 121-200 riders 7 places
A56: Placings | B56: 1D | C56: 2D | D56: 3D
A57: 1st | B57: =$B$7*$F$57 -> 3.12 | C57: =$C$7*$F$57 -> 1.872 | D57: =$D$7*$F$57 -> 1.248 | E57: è | F57: 0.26
A58: 2nd | B58: =$B$7*$F$58 -> 2.4 | C58: =$C$7*$F$58 -> 1.44 | D58: =$D$7*$F$58 -> 0.96 | E58: è | F58: 0.2
A59: 3rd | B59: =$B$7*$F$59 -> 1.8 | C59: =$C$7*$F$59 -> 1.08 | D59: =$D$7*$F$59 -> 0.72 | E59: è | F59: 0.15
A60: 4th | B60: =$B$7*$F$60 -> 1.44 | C60: =$C$7*$F$60 -> 0.864 | D60: =$D$7*$F$60 -> 0.576 | E60: è | F60: 0.12
A61: 5th | B61: =$B$7*$F$61 -> 1.2 | C61: =$C$7*$F$61 -> 0.72 | D61: =$D$7*$F$61 -> 0.48 | E61: è | F61: 0.1
A62: 6th | B62: =$B$7*$F$62 -> 1.08 | C62: =$C$7*$F$62 -> 0.648 | D62: =$D$7*$F$62 -> 0.432 | E62: è | F62: 0.09
A63: 7th | B63: =$B$7*$F$63 -> 0.96 | C63: =$C$7*$F$63 -> 0.576 | D63: =$D$7*$F$63 -> 0.384 | E63: è | F63: 0.08
A64: Totals | B64: =SUM(B57:B63) -> 12 | C64: =SUM(C57:C63) -> 7.2 | D64: =SUM(D57:D63) -> 4.8 | E64: =SUM(B64:D64) -> 24 | F64: =SUM(F57:F63) -> 1
A66: For 201 or more riders 8 places
A67: Placings | B67: 1D | C67: 2D | D67: 3D
A68: 1st | B68: =$B$7*0.24 -> 2.88 | C68: =$C$7*0.24 -> 1.728 | D68: =$D$7*0.24 -> 1.152 | E68: è | F68: 0.24
A69: 2nd | B69: =$B$7*0.18 -> 2.16 | C69: =$C$7*0.18 -> 1.296 | D69: =$D$7*0.18 -> 0.864 | E69: è | F69: 0.18
A70: 3rd | B70: =$B$7*0.15 -> 1.8 | C70: =$C$7*0.15 -> 1.08 | D70: =$D$7*0.15 -> 0.72 | E70: è | F70: 0.15
A71: 4th | B71: =$B$7*0.12 -> 1.44 | C71: =$C$7*0.12 -> 0.864 | D71: =$D$7*0.12 -> 0.576 | E71: è | F71: 0.12
A72: 5th | B72: =$B$7*0.1 -> 1.2 | C72: =$C$7*0.1 -> 0.72 | D72: =$D$7*0.1 -> 0.48 | E72: è | F72: 0.1
A73: 6th | B73: =$B$7*0.08 -> 0.96 | C73: =$C$7*0.08 -> 0.576 | D73: =$D$7*0.08 -> 0.384 | E73: è | F73: 0.08
A74: 7th | B74: =$B$7*0.07 -> 0.84 | C74: =$C$7*0.07 -> 0.504 | D74: =$D$7*0.07 -> 0.336 | E74: è | F74: 0.07
A75: 8th | B75: =$B$7*0.06 -> 0.72 | C75: =$C$7*0.06 -> 0.432 | D75: =$D$7*0.06 -> 0.288 | E75: è | F75: 0.06
A76: Totals | B76: =SUM(B68:B75) -> 12 | C76: =SUM(C68:C75) -> 7.2 | D76: =SUM(D68:D75) -> 4.8 | E76: =SUM(B76:D76) -> 24 | F76: =SUM(F68:F75) -> 1

Sheet 4D Payout BBR (hidden)
A1: 4D Payout BBR
A2: Entry Fee | B2: # Entries | C2: % Payback | D2: $ From Entry | E2: Added $ | F2: Total Payout
A3: 40 | B3: 200 | C3: 0.8 | D3: =$A$3*$C$3*$B$3 -> 6400 | E3: 1100 | F3: =($A$3*$C$3)*$B$3+$E$3 -> 7500
A5: % in each D | B5: 0.35 | C5: 0.3 | D5: 0.2 | E5: 0.15 | F5: Total % Payout | G5: =SUM(B5:E5) -> 1
B6: 1D | C6: 2D | D6: 3D | E6: 4D
B7: =(($A$3*$B$3*$C$3*0.35)+($E$3/4)) -> 2515 | C7: =(($A$3*$B$3*$C$3*0.3)+($E$3/4)) -> 2195 | D7: =(($A$3*$B$3*$C$3*0.2)+($E$3/4)) -> 1555 | E7: =(($A$3*$B$3*$C$3*0.15)+($E$3/4)) -> 1235
A8: Totals | B8: =SUM(B7) -> 2515 | C8: =SUM(C7) -> 2195 | D8: 1555 | E8: 1235 | F8: =SUM(B8:E8) -> 7500
A10: For 1-16 riders 1 place
A11: Placings | B11: 1D | C11: 2D | D11: 3D | E11: 4D
A12: 1st | B12: =$B$7*$G$12 -> 2515 | C12: =$C$7*$G$12 -> 2195 | D12: =$D$7*$G$12 -> 1555 | E12: =$E$7*$G$12 -> 1235 | F12: è | G12: 1
A13: Totals | B13: =SUM(B12:B12) -> 2515 | C13: =SUM(C12:C12) -> 2195 | D13: =SUM(D12:D12) -> 1555 | E13: =SUM(E12:E12) -> 1235 | F13: =SUM(B13:E13) -> 7500 | G13: =SUM(G12) -> 1
A15: For 17-33 riders 2 places
A16: Placings | B16: 1D | C16: 2D | D16: 3D | E16: 4D
A17: 1st | B17: =$B$7*$G$17 -> 1509 | C17: =$C$7*$G$17 -> 1317 | D17: =$D$7*$G$17 -> 933 | E17: =$E$7*$G$17 -> 741 | F17: è | G17: 0.6
A18: 2nd | B18: =$B$7*$G$18 -> 1006 | C18: =$C$7*$G$18 -> 878 | D18: =$D$7*$G$18 -> 622 | E18: =$E$7*$G$18 -> 494 | F18: è | G18: 0.4
A19: Totals | B19: =SUM(B17:B18) -> 2515 | C19: =SUM(C17:C18) -> 2195 | D19: =SUM(D17:D18) -> 1555 | E19: =SUM(E17:E18) -> 1235 | F19: =SUM(B19:E19) -> 7500 | G19: =SUM(G17:G18) -> 1
A21: For 34-66 riders 3 places
A22: Placings | B22: 1D | C22: 2D | D22: 3D | E22: 4D
A23: 1st | B23: =$B$7*$G$23 -> 1257.5 | C23: =$C$7*$G$23 -> 1097.5 | D23: =$D$7*$G$23 -> 777.5 | E23: =$E$7*$G$23 -> 617.5 | F23: è | G23: 0.5
A24: 2nd | B24: =$B$7*$G$24 -> 754.5 | C24: =$C$7*$G$24 -> 658.5 | D24: =$D$7*$G$24 -> 466.5 | E24: =$E$7*$G$24 -> 370.5 | F24: è | G24: 0.3
A25: 3rd | B25: =$B$7*$G$25 -> 503 | C25: =$C$7*$G$25 -> 439 | D25: =$D$7*$G$25 -> 311 | E25: =$E$7*$G$25 -> 247 | F25: è | G25: 0.2
A26: Totals | B26: =SUM(B23:B25) -> 2515 | C26: =SUM(C23:C25) -> 2195 | D26: =SUM(D23:D25) -> 1555 | E26: =SUM(E23:E25) -> 1235 | F26: =SUM(B26:E26) -> 7500 | G26: =SUM(G23:G25) -> 1
A28: For 97-95 riders 4 places
A29: Placings | B29: 1D | C29: 2D | D29: 3D | E29: 4D
A30: 1st | B30: =$B$7*$G$30 -> 1006 | C30: =$C$7*$G$30 -> 878 | D30: =$D$7*$G$30 -> 622 | E30: =$E$7*$G$30 -> 494 | F30: è | G30: 0.4
A31: 2nd | B31: =$B$7*$G$31 -> 754.5 | C31: =$C$7*$G$31 -> 658.5 | D31: =$D$7*$G$31 -> 466.5 | E31: =$E$7*$G$31 -> 370.5 | F31: è | G31: 0.3
A32: 3rd | B32: =$B$7*$G$32 -> 503 | C32: =$C$7*$G$32 -> 439 | D32: =$D$7*$G$32 -> 311 | E32: =$E$7*$G$32 -> 247 | F32: è | G32: 0.2
A33: 4th | B33: =$B$7*$G$33 -> 251.5 | C33: =$C$7*$G$33 -> 219.5 | D33: =$D$7*$G$33 -> 155.5 | E33: =$E$7*$G$33 -> 123.5 | F33: è | G33: 0.1
A34: Totals | B34: =SUM(B30:B33) -> 2515 | C34: =SUM(C30:C33) -> 2195 | D34: =SUM(D30:D33) -> 1555 | E34: =SUM(E30:E33) -> 1235 | F34: =SUM(B34:E34) -> 7500 | G34: =SUM(G30:G33) -> 1
A36: For 96-133 riders 5 places
A37: Placings | B37: 1D | C37: 2D | D37: 3D | E37: 4D
A38: 1st | B38: =$B$7*$G$38 -> 829.95 | C38: =$C$7*$G$38 -> 724.35 | D38: =$D$7*G38 -> 513.15 | E38: =$E$7*$G$38 -> 407.55 | F38: è | G38: 0.33
A39: 2nd | B39: =$B$7*$G$39 -> 679.05 | C39: =$C$7*$G$39 -> 592.65 | D39: =$D$7*$G$39 -> 419.85 | E39: =$E$7*$G$39 -> 333.45 | F39: è | G39: 0.27
A40: 3rd | B40: =$B$7*$G$40 -> 503 | C40: =$C$7*$G$40 -> 439 | D40: =$D$7*$G$40 -> 311 | E40: =$E$7*$G$40 -> 247 | F40: è | G40: 0.2
A41: 4th | B41: =$B$7*$G$41 -> 326.95 | C41: =$C$7*$G$41 -> 285.35 | D41: =$D$7*$G$41 -> 202.15 | E41: =$E$7*$G$41 -> 160.55 | F41: è | G41: 0.13
A42: 5th | B42: =$B$7*$G$42 -> 176.05 | C42: =$C$7*$G$42 -> 153.65 | D42: =$D$7*$G$42 -> 108.85 | E42: =$E$7*$G$42 -> 86.45 | F42: è | G42: 0.07
A43: Totals | B43: =SUM(B38:B42) -> 2515 | C43: =SUM(C38:C42) -> 2195 | D43: =SUM(D38:D42) -> 1555 | E43: =SUM(E38:E42) -> 1235 | F43: =SUM(B43:E43) -> 7500 | G43: =SUM(G38:G42) -> 1
A45: For 134-166 riders 6 places
A46: Placings | B46: 1D | C46: 2D | D46: 3D | E46: 4D
A47: 1st | B47: =$B$7*$G$47 -> 729.35 | C47: =$C$7*$G$47 -> 636.55 | D47: =$D$7*$G$47 -> 450.95 | E47: =$E$7*$G$47 -> 358.15 | F47: è | G47: 0.29
A48: 2nd | B48: =$B$7*$G$48 -> 603.6 | C48: =$C$7*$G$48 -> 526.8 | D48: =$D$7*$G$48 -> 373.2 | E48: =$E$7*$G$48 -> 296.4 | F48: è | G48: 0.24
A49: 3rd | B49: =$B$7*$G$49 -> 477.85 | C49: =$C$7*$G$49 -> 417.05 | D49: =$D$7*$G$49 -> 295.45 | E49: =$E$7*$G$49 -> 234.65 | F49: è | G49: 0.19
A50: 4th | B50: =$B$7*$G$50 -> 352.1 | C50: =$C$7*$G$50 -> 307.3 | D50: =$D$7*$G$50 -> 217.7 | E50: =$E$7*$G$50 -> 172.9 | F50: è | G50: 0.14
A51: 5th | B51: =$B$7*$G$51 -> 226.35 | C51: =$C$7*$G$51 -> 197.55 | D51: =$D$7*$G$51 -> 139.95 | E51: =$E$7*$G$51 -> 111.15 | F51: è | G51: 0.09
A52: 6th | B52: =$B$7*$G$52 -> 125.75 | C52: =$C$7*$G$52 -> 109.75 | D52: =$D$7*$G$52 -> 77.75 | E52: =$E$7*$G$52 -> 61.75 | F52: è | G52: 0.05
A53: Totals | B53: =SUM(B47:B52) -> 2515 | C53: =SUM(C47:C52) -> 2195 | D53: =SUM(D47:D52) -> 1555 | E53: =SUM(E47:E52) -> 1235 | F53: =SUM(B53:E53) -> 7500 | G53: =SUM(G47:G52) -> 1
A55: For 167-222 riders 8 places
A56: Placings | B56: 1D | C56: 2D | D56: 3D | E56: 4D
A57: 1st | B57: =$B$7*$G$57 -> 603.6 | C57: =$C$7*$G$57 -> 526.8 | D57: =$D$7*$G$57 -> 373.2 | E57: =$E$7*$G$57 -> 296.4 | F57: è | G57: 0.24
A58: 2nd | B58: =$B$7*$G$58 -> 503 | C58: =$C$7*$G$58 -> 439 | D58: =$D$7*$G$58 -> 311 | E58: =$E$7*$G$58 -> 247 | F58: è | G58: 0.2
A59: 3rd | B59: =$B$7*$G$59 -> 427.55 | C59: =$C$7*$G$59 -> 373.15 | D59: =$D$7*$G$59 -> 264.35 | E59: =$E$7*$G$59 -> 209.95 | F59: è | G59: 0.17
A60: 4th | B60: =$B$7*$G$60 -> 326.95 | C60: =$C$7*$G$60 -> 285.35 | D60: =$D$7*$G$60 -> 202.15 | E60: =$E$7*$G$60 -> 160.55 | F60: è | G60: 0.13
A61: 5th | B61: =$B$7*$G$61 -> 251.5 | C61: =$C$7*$G$61 -> 219.5 | D61: =$D$7*$G$61 -> 155.5 | E61: =$E$7*$G$61 -> 123.5 | F61: è | G61: 0.1
A62: 6th | B62: =$B$7*$G$62 -> 176.05 | C62: =$C$7*$G$62 -> 153.65 | D62: =$D$7*$G$62 -> 108.85 | E62: =$E$7*$G$62 -> 86.45 | F62: è | G62: 0.07
A63: 7th | B63: =$B$7*$G$63 -> 125.75 | C63: =$C$7*$G$63 -> 109.75 | D63: =$D$7*$G$63 -> 77.75 | E63: =$E$7*$G$63 -> 61.75 | F63: è | G63: 0.05
A64: 8th | B64: =$B$7*$G$64 -> 100.6 | C64: =$C$7*$G$64 -> 87.8 | D64: =$D$7*$G$64 -> 62.2 | E64: =$E$7*$G$64 -> 49.4 | F64: è | G64: 0.04
A65: Totals | B65: =SUM(B57:B64) -> 2515 | C65: =SUM(C57:C64) -> 2195 | D65: =SUM(D57:D64) -> 1555 | E65: =SUM(E57:E64) -> 1235 | F65: =SUM(B65:E65) -> 7500 | G65: =SUM(G57:G64) -> 1
A67: For 223-333 riders 10 places
A68: Placings | B68: 1D | C68: 2D | D68: 3D | E68: 4D
A69: 1st | B69: =$B$7*$G$69 -> 528.15 | C69: =$C$7*$G$69 -> 460.95 | D69: =$D$7*$G$69 -> 326.55 | E69: =$E$7*$G$69 -> 259.35 | F69: è | G69: 0.21
A70: 2nd | B70: =$B$7*$G$70 -> 452.7 | C70: =$C$7*$G$70 -> 395.1 | D70: =$D$7*$G$70 -> 279.9 | E70: =$E$7*$G$70 -> 222.3 | F70: è | G70: 0.18
A71: 3rd | B71: =$B$7*$G$71 -> 377.25 | C71: =$C$7*$G$71 -> 329.25 | D71: =$D$7*$G$71 -> 233.25 | E71: =$E$7*$G$71 -> 185.25 | F71: è | G71: 0.15
A72: 4th | B72: =$B$7*$G$72 -> 301.8 | C72: =$C$7*$G$72 -> 263.4 | D72: =$D$7*$G$72 -> 186.6 | E72: =$E$7*$G$72 -> 148.2 | F72: è | G72: 0.12
A73: 5th | B73: =$B$7*$G$73 -> 226.35 | C73: =$C$7*$G$73 -> 197.55 | D73: =$D$7*$G$73 -> 139.95 | E73: =$E$7*$G$73 -> 111.15 | F73: è | G73: 0.09
A74: 6th | B74: =$B$7*$G$74 -> 176.05 | C74: =$C$7*$G$74 -> 153.65 | D74: =$D$7*$G$74 -> 108.85 | E74: =$E$7*$G$74 -> 86.45 | F74: è | G74: 0.07
A75: 7th | B75: =$B$7*$G$75 -> 150.9 | C75: =$C$7*$G$75 -> 131.7 | D75: =$D$7*$G$75 -> 93.3 | E75: =$E$7*$G$75 -> 74.1 | F75: è | G75: 0.06
A76: 8th | B76: =$B$7*$G$76 -> 125.75 | C76: =$C$7*$G$76 -> 109.75 | D76: =$D$7*$G$76 -> 77.75 | E76: =$E$7*$G$76 -> 61.75 | F76: è | G76: 0.05
A77: 9th | B77: =$B$7*$G$77 -> 100.6 | C77: =$C$7*$G$77 -> 87.8 | D77: =$D$7*$G$77 -> 62.2 | E77: =$E$7*$G$77 -> 49.4 | F77: è | G77: 0.04
A78: 10th | B78: =$B$7*$G$78 -> 75.45 | C78: =$C$7*$G$78 -> 65.85 | D78: =$D$7*$G$78 -> 46.65 | E78: =$E$7*$G$78 -> 37.05 | F78: è | G78: 0.03
A79: Totals | B79: =SUM(B69:B78) -> 2515 | C79: =SUM(C69:C78) -> 2195 | D79: =SUM(D69:D78) -> 1555 | E79: =SUM(E69:E78) -> 1235 | F79: =B79+C79+D79+E79 -> 7500 | G79: =SUM(G69:G78) -> 1
A81: For 334-500 riders 12 places
A82: Placings | B82: 1D | C82: 2D | D82: 3D | E82: 4D
A83: 1st | B83: =$B$7*$G$83 -> 477.85 | C83: =$C$7*$G$83 -> 417.05 | D83: =$D$7*$G$83 -> 295.45 | E83: =$E$7*$G$83 -> 234.65 | F83: è | G83: 0.19
A84: 2nd | B84: =$B$7*$G$84 -> 377.25 | C84: =$C$7*$G$84 -> 329.25 | D84: =$D$7*$G$84 -> 233.25 | E84: =$E$7*$G$84 -> 185.25 | F84: è | G84: 0.15
A85: 3rd | B85: =$B$7*$G$85 -> 301.8 | C85: =$C$7*$G$85 -> 263.4 | D85: =$D$7*$G$85 -> 186.6 | E85: =$E$7*$G$85 -> 148.2 | F85: è | G85: 0.12
A86: 4th | B86: =$B$7*$G$86 -> 251.5 | C86: =$C$7*$G$86 -> 219.5 | D86: =$D$7*$G$86 -> 155.5 | E86: =$E$7*$G$86 -> 123.5 | F86: è | G86: 0.1
A87: 5th | B87: =$B$7*$G$87 -> 226.35 | C87: =$C$7*$G$87 -> 197.55 | D87: =$D$7*$G$87 -> 139.95 | E87: =$E$7*$G$87 -> 111.15 | F87: è | G87: 0.09
A88: 6th | B88: =$B$7*$G$88 -> 201.2 | C88: =$C$7*$G$88 -> 175.6 | D88: =$D$7*$G$88 -> 124.4 | E88: =$E$7*$G$88 -> 98.8 | F88: è | G88: 0.08
A89: 7th | B89: =$B$7*$G$89 -> 176.05 | C89: =$C$7*$G$89 -> 153.65 | D89: =$D$7*$G$89 -> 108.85 | E89: =$E$7*$G$89 -> 86.45 | F89: è | G89: 0.07
A90: 8th | B90: =$B$7*$G$90 -> 150.9 | C90: =$C$7*$G$90 -> 131.7 | D90: =$D$7*$G$90 -> 93.3 | E90: =$E$7*$G$90 -> 74.1 | F90: è | G90: 0.06
A91: 9th | B91: =$B$7*$G$91 -> 125.75 | C91: =$C$7*$G$91 -> 109.75 | D91: =$D$7*$G$91 -> 77.75 | E91: =$E$7*$G$91 -> 61.75 | F91: è | G91: 0.05
A92: 10th | B92: =$B$7*$G$92 -> 100.6 | C92: =$C$7*$G$92 -> 87.8 | D92: =$D$7*$G$92 -> 62.2 | E92: =$E$7*$G$92 -> 49.4 | F92: è | G92: 0.04
A93: 11th | B93: =$B$7*$G$93 -> 75.45 | C93: =$C$7*$G$93 -> 65.85 | D93: =$D$7*$G$93 -> 46.65 | E93: =$E$7*$G$93 -> 37.05 | F93: è | G93: 0.03
A94: 12th | B94: =$B$7*$G$94 -> 50.3 | C94: =$C$7*$G$94 -> 43.9 | D94: =$D$7*$G$94 -> 31.1 | E94: =$E$7*$G$94 -> 24.7 | F94: è | G94: 0.02
A95: Totals | B95: =SUM(B83:B94) -> 2515 | C95: =SUM(C83:C94) -> 2195 | D95: 1555 | E95: 1235 | F95: =B95+C95+D95+E95 -> 7500 | G95: =SUM(G83:G94) -> 1
A97: For 501-750 riders 15 places
A98: Placings | B98: 1D | C98: 2D | D98: 3D | E98: 4D
A99: 1st | B99: =$B$7*$G$99 -> 452.7 | C99: =$C$7*$G$99 -> 395.1 | D99: =$D$7*$G$99 -> 279.9 | E99: =$E$7*$G$99 -> 222.3 | F99: è | G99: 0.18
A100: 2nd | B100: =$B$7*$G$100 -> 377.25 | C100: =$C$7*$G$100 -> 329.25 | D100: =$D$7*$G$100 -> 233.25 | E100: =$E$7*$G$100 -> 185.25 | F100: è | G100: 0.15
A101: 3rd | B101: =$B$7*$G$101 -> 301.8 | C101: =$C$7*$G$101 -> 263.4 | D101: =$D$7*$G$101 -> 186.6 | E101: =$E$7*$G$101 -> 148.2 | F101: è | G101: 0.12
A102: 4th | B102: =$B$7*$G$102 -> 251.5 | C102: =$C$7*$G$102 -> 219.5 | D102: =$D$7*$G$102 -> 155.5 | E102: =$E$7*$G$102 -> 123.5 | F102: è | G102: 0.1
A103: 5th | B103: =$B$7*$G$103 -> 213.775 | C103: =$C$7*$G$103 -> 186.575 | D103: =$D$7*$G$103 -> 132.175 | E103: =$E$7*$G$103 -> 104.975 | F103: è | G103: 0.085
A104: 6th | B104: =$B$7*$G$104 -> 176.05 | C104: =$C$7*$G$104 -> 153.65 | D104: =$D$7*$G$104 -> 108.85 | E104: =$E$7*$G$104 -> 86.45 | F104: è | G104: 0.07
A105: 7th | B105: =$B$7*$G$105 -> 150.9 | C105: =$C$7*$G$105 -> 131.7 | D105: =$D$7*$G$105 -> 93.3 | E105: =$E$7*$G$105 -> 74.1 | F105: è | G105: 0.06
A106: 8th | B106: =$B$7*$G$106 -> 125.75 | C106: =$C$7*$G$106 -> 109.75 | D106: =$D$7*$G$106 -> 77.75 | E106: =$E$7*$G$106 -> 61.75 | F106: è | G106: 0.05
A107: 9th | B107: =$B$7*$G$107 -> 106.8875 | C107: =$C$7*$G$107 -> 93.2875 | D107: =$D$7*$G$107 -> 66.0875 | E107: =$E$7*$G$107 -> 52.4875 | F107: è | G107: 0.0425
A108: 10th | B108: =$B$7*$G$108 -> 88.025 | C108: =$C$7*$G$108 -> 76.825 | D108: =$D$7*$G$108 -> 54.425 | E108: =$E$7*$G$108 -> 43.225 | F108: è | G108: 0.035
A109: 11th | B109: =$B$7*$G$109 -> 75.45 | C109: =$C$7*$G$109 -> 65.85 | D109: =$D$7*$G$109 -> 46.65 | E109: =$E$7*$G$109 -> 37.05 | F109: è | G109: 0.03
A110: 12th | B110: =$B$7*$G$110 -> 62.875 | C110: =$C$7*$G$110 -> 54.875 | D110: =$D$7*$G$110 -> 38.875 | E110: =$E$7*$G$110 -> 30.875 | F110: è | G110: 0.025
A111: 13th | B111: =$B$7*$G$111 -> 50.3 | C111: =$C$7*$G$111 -> 43.9 | D111: =$D$7*$G$111 -> 31.1 | E111: =$E$7*$G$111 -> 24.7 | F111: è | G111: 0.02
A112: 14th | B112: =$B$7*$G$112 -> 44.0125 | C112: =$C$7*$G$112 -> 38.4125 | D112: =$D$7*$G$112 -> 27.2125 | E112: =$E$7*$G$112 -> 21.6125 | F112: è | G112: 0.0175
A113: 15th | B113: =$B$7*$G$113 -> 37.725 | C113: =$C$7*$G$113 -> 32.925 | D113: =$D$7*$G$113 -> 23.325 | E113: =$E$7*$G$113 -> 18.525 | F113: è | G113: 0.015
A114: Totals | B114: =SUM(B99:B113) -> 2515 | C114: =SUM(C99:C113) -> 2195 | D114: 1555 | E114: 1235 | F114: =B114+C114+D114+E114 -> 7500 | G114: =SUM(G99:G113) -> 1
A116: For 751-1200 riders 20 places
A117: Placings | B117: 1D | C117: 2D | D117: 3D | E117: 4D
A118: 1st | B118: =$B$7*$G$118 -> 352.1 | C118: =$C$7*$G$118 -> 307.3 | D118: =$D$7*$G$118 -> 217.7 | E118: =$E$7*$G$118 -> 172.9 | F118: è | G118: 0.14
A119: 2nd | B119: =$B$7*$G$119 -> 276.65 | C119: =$C$7*$G$119 -> 241.45 | D119: =$D$7*$G$119 -> 171.05 | E119: =$E$7*$G$119 -> 135.85 | F119: è | G119: 0.11
A120: 3rd | B120: =$B$7*$G$120 -> 226.35 | C120: =$C$7*$G$120 -> 197.55 | D120: =$D$7*$G$120 -> 139.95 | E120: =$E$7*$G$120 -> 111.15 | F120: è | G120: 0.09
A121: 4th | B121: =$B$7*$G$121 -> 193.655 | C121: =$C$7*$G$121 -> 169.015 | D121: =$D$7*$G$121 -> 119.735 | E121: =$E$7*$G$121 -> 95.095 | F121: è | G121: 0.077
A122: 5th | B122: =$B$7*$G$122 -> 176.05 | C122: =$C$7*$G$122 -> 153.65 | D122: =$D$7*$G$122 -> 108.85 | E122: =$E$7*$G$122 -> 86.45 | F122: è | G122: 0.07
A123: 6th | B123: =$B$7*$G$123 -> 163.475 | C123: =$C$7*$G$123 -> 142.675 | D123: =$D$7*$G$123 -> 101.075 | E123: =$E$7*$G$123 -> 80.275 | F123: è | G123: 0.065
A124: 7th | B124: =$B$7*$G$124 -> 150.9 | C124: =$C$7*$G$124 -> 131.7 | D124: =$D$7*$G$124 -> 93.3 | E124: =$E$7*$G$124 -> 74.1 | F124: è | G124: 0.06
A125: 8th | B125: =$B$7*$G$125 -> 138.325 | C125: =$C$7*$G$125 -> 120.725 | D125: =$D$7*$G$125 -> 85.525 | E125: =$E$7*$G$125 -> 67.925 | F125: è | G125: 0.055
A126: 9th | B126: =$B$7*$G$126 -> 125.75 | C126: =$C$7*$G$126 -> 109.75 | D126: =$D$7*$G$126 -> 77.75 | E126: =$E$7*$G$126 -> 61.75 | F126: è | G126: 0.05
A127: 10th | B127: =$B$7*$G$127 -> 113.175 | C127: =$C$7*$G$127 -> 98.775 | D127: =$D$7*$G$127 -> 69.975 | E127: =$E$7*$G$127 -> 55.575 | F127: è | G127: 0.045
A128: 11th | B128: =$B$7*$G$128 -> 100.6 | C128: =$C$7*$G$128 -> 87.8 | D128: =$D$7*$G$128 -> 62.2 | E128: =$E$7*$G$128 -> 49.4 | F128: è | G128: 0.04
A129: 12th | B129: =$B$7*$G$129 -> 93.055 | C129: =$C$7*$G$129 -> 81.215 | D129: =$D$7*$G$129 -> 57.535 | E129: =$E$7*$G$129 -> 45.695 | F129: è | G129: 0.037
A130: 13th | B130: =$B$7*$G$130 -> 82.995 | C130: =$C$7*$G$130 -> 72.435 | D130: =$D$7*$G$130 -> 51.315 | E130: =$E$7*$G$130 -> 40.755 | F130: è | G130: 0.033
A131: 14th | B131: =$B$7*$G$131 -> 72.935 | C131: =$C$7*$G$131 -> 63.655 | D131: =$D$7*$G$131 -> 45.095 | E131: =$E$7*$G$131 -> 35.815 | F131: è | G131: 0.029
A132: 15th | B132: =$B$7*$G$132 -> 62.875 | C132: =$C$7*$G$132 -> 54.875 | D132: =$D$7*$G$132 -> 38.875 | E132: =$E$7*$G$132 -> 30.875 | F132: è | G132: 0.025
A133: 16th | B133: =$B$7*$G$133 -> 52.815 | C133: =$C$7*$G$133 -> 46.095 | D133: =$D$7*$G$133 -> 32.655 | E133: =$E$7*$G$133 -> 25.935 | F133: è | G133: 0.021
A134: 17th | B134: =$B$7*$G$134 -> 42.755 | C134: =$C$7*$G$134 -> 37.315 | D134: =$D$7*$G$134 -> 26.435 | E134: =$E$7*$G$134 -> 20.995 | F134: è | G134: 0.017
A135: 18th | B135: =$B$7*$G$135 -> 35.21 | C135: =$C$7*$G$135 -> 30.73 | D135: =$D$7*$G$135 -> 21.77 | E135: =$E$7*$G$135 -> 17.29 | F135: è | G135: 0.014
A136: 19th | B136: =$B$7*$G$136 -> 30.18 | C136: =$C$7*$G$136 -> 26.34 | D136: =$D$7*$G$136 -> 18.66 | E136: =$E$7*$G$136 -> 14.82 | F136: è | G136: 0.012
A137: 20th | B137: =$B$7*$G$137 -> 25.15 | C137: =$C$7*$G$137 -> 21.95 | D137: =$D$7*$G$137 -> 15.55 | E137: =$E$7*$G$137 -> 12.35 | F137: è | G137: 0.01
A138: Totals | B138: =SUM(B118:B137) -> 2515 | C138: =SUM(C118:C137) -> 2195 | D138: 1555 | E138: 1235 | F138: =B138+C138+D138+E138 -> 7500 | G138: =SUM(G118:G137) -> 1
A140: For 1201 or More riders 30 places
A141: Placings | B141: 1D | C141: 2D | D141: 3D | E141: 4D
A142: 1st | B142: =$B$7*$G$142 -> 301.8 | C142: =$C$7*$G$142 -> 263.4 | D142: =$D$7*$G$142 -> 186.6 | E142: =$E$7*$G$142 -> 148.2 | F142: è | G142: 0.12
A143: 2nd | B143: =$B$7*$G$143 -> 238.925 | C143: =$C$7*$G$143 -> 208.525 | D143: =$D$7*$G$143 -> 147.725 | E143: =$E$7*$G$143 -> 117.325 | F143: è | G143: 0.095
A144: 3rd | B144: =$B$7*$G$144 -> 183.595 | C144: =$C$7*$G$144 -> 160.235 | D144: =$D$7*$G$144 -> 113.515 | E144: =$E$7*$G$144 -> 90.155 | F144: è | G144: 0.073
A145: 4th | B145: =$B$7*$G$145 -> 155.93 | C145: =$C$7*$G$145 -> 136.09 | D145: =$D$7*$G$145 -> 96.41 | E145: =$E$7*$G$145 -> 76.57 | F145: è | G145: 0.062
A146: 5th | B146: =$B$7*$G$146 -> 125.75 | C146: =$C$7*$G$146 -> 109.75 | D146: =$D$7*$G$146 -> 77.75 | E146: =$E$7*$G$146 -> 61.75 | F146: è | G146: 0.05
A147: 6th | B147: =$B$7*$G$147 -> 113.175 | C147: =$C$7*$G$147 -> 98.775 | D147: =$D$7*$G$147 -> 69.975 | E147: =$E$7*$G$147 -> 55.575 | F147: è | G147: 0.045
A148: 7th | B148: =$B$7*$G$148 -> 108.145 | C148: =$C$7*$G$148 -> 94.385 | D148: =$D$7*$G$148 -> 66.865 | E148: =$E$7*$G$148 -> 53.105 | F148: è | G148: 0.043
A149: 8th | B149: =$B$7*$G$149 -> 100.6 | C149: =$C$7*$G$149 -> 87.8 | D149: =$D$7*$G$149 -> 62.2 | E149: =$E$7*$G$149 -> 49.4 | F149: è | G149: 0.04
A150: 9th | B150: =$B$7*$G$150 -> 93.055 | C150: =$C$7*$G$150 -> 81.215 | D150: =$D$7*$G$150 -> 57.535 | E150: =$E$7*$G$150 -> 45.695 | F150: è | G150: 0.037
A151: 10th | B151: =$B$7*$G$151 -> 88.025 | C151: =$C$7*$G$151 -> 76.825 | D151: =$D$7*$G$151 -> 54.425 | E151: =$E$7*$G$151 -> 43.225 | F151: è | G151: 0.035
A152: 11th | B152: =$B$7*$G$152 -> 82.995 | C152: =$C$7*$G$152 -> 72.435 | D152: =$D$7*$G$152 -> 51.315 | E152: =$E$7*$G$152 -> 40.755 | F152: è | G152: 0.033
A153: 12th | B153: =$B$7*$G$153 -> 77.965 | C153: =$C$7*$G$153 -> 68.045 | D153: =$D$7*$G$153 -> 48.205 | E153: =$E$7*$G$153 -> 38.285 | F153: è | G153: 0.031
A154: 13th | B154: =$B$7*$G$154 -> 72.935 | C154: =$C$7*$G$154 -> 63.655 | D154: =$D$7*$G$154 -> 45.095 | E154: =$E$7*$G$154 -> 35.815 | F154: è | G154: 0.029
A155: 14th | B155: =$B$7*$G$155 -> 67.905 | C155: =$C$7*$G$155 -> 59.265 | D155: =$D$7*$G$155 -> 41.985 | E155: =$E$7*$G$155 -> 33.345 | F155: è | G155: 0.027
A156: 15th | B156: =$B$7*$G$156 -> 62.875 | C156: =$C$7*$G$156 -> 54.875 | D156: =$D$7*$G$156 -> 38.875 | E156: =$E$7*$G$156 -> 30.875 | F156: è | G156: 0.025
A157: 16th | B157: =$B$7*$G$157 -> 60.36 | C157: =$C$7*$G$157 -> 52.68 | D157: =$D$7*$G$157 -> 37.32 | E157: =$E$7*$G$157 -> 29.64 | F157: è | G157: 0.024
A158: 17th | B158: =$B$7*$G$158 -> 57.845 | C158: =$C$7*$G$158 -> 50.485 | D158: =$D$7*$G$158 -> 35.765 | E158: =$E$7*$G$158 -> 28.405 | F158: è | G158: 0.023
A159: 18th | B159: =$B$7*$G$159 -> 55.33 | C159: =$C$7*$G$159 -> 48.29 | D159: =$D$7*$G$159 -> 34.21 | E159: =$E$7*$G$159 -> 27.17 | F159: è | G159: 0.022
A160: 19th | B160: =$B$7*$G$160 -> 52.815 | C160: =$C$7*$G$160 -> 46.095 | D160: =$D$7*$G$160 -> 32.655 | E160: =$E$7*$G$160 -> 25.935 | F160: è | G160: 0.021
A161: 20th | B161: =$B$7*$G$161 -> 50.3 | C161: =$C$7*$G$161 -> 43.9 | D161: =$D$7*$G$161 -> 31.1 | E161: =$E$7*$G$161 -> 24.7 | F161: è | G161: 0.02
A162: 21st | B162: =$B$7*$G$162 -> 47.785 | C162: =$C$7*$G$162 -> 41.705 | D162: =$D$7*$G$162 -> 29.545 | E162: =$E$7*$G$162 -> 23.465 | F162: è | G162: 0.019
A163: 22nd | B163: =$B$7*$G$163 -> 45.27 | C163: =$C$7*$G$163 -> 39.51 | D163: =$D$7*$G$163 -> 27.99 | E163: =$E$7*$G$163 -> 22.23 | F163: è | G163: 0.018
A164: 23rd | B164: =$B$7*$G$164 -> 42.755 | C164: =$C$7*$G$164 -> 37.315 | D164: =$D$7*$G$164 -> 26.435 | E164: =$E$7*$G$164 -> 20.995 | F164: è | G164: 0.017
A165: 24th | B165: =$B$7*$G$165 -> 40.24 | C165: =$C$7*$G$165 -> 35.12 | D165: =$D$7*$G$165 -> 24.88 | E165: =$E$7*$G$165 -> 19.76 | F165: è | G165: 0.016
A166: 25th | B166: =$B$7*$G$166 -> 37.725 | C166: =$C$7*$G$166 -> 32.925 | D166: =$D$7*$G$166 -> 23.325 | E166: =$E$7*$G$166 -> 18.525 | F166: è | G166: 0.015
A167: 26th | B167: =$B$7*$G$167 -> 35.21 | C167: =$C$7*$G$167 -> 30.73 | D167: =$D$7*$G$167 -> 21.77 | E167: =$E$7*$G$167 -> 17.29 | F167: è | G167: 0.014
A168: 27th | B168: =$B$7*$G$168 -> 32.695 | C168: =$C$7*$G$168 -> 28.535 | D168: =$D$7*$G$168 -> 20.215 | E168: =$E$7*$G$168 -> 16.055 | F168: è | G168: 0.013
A169: 28th | B169: =$B$7*$G$169 -> 30.18 | C169: =$C$7*$G$169 -> 26.34 | D169: =$D$7*$G$169 -> 18.66 | E169: =$E$7*$G$169 -> 14.82 | F169: è | G169: 0.012
A170: 29th | B170: =$B$7*$G$170 -> 27.665 | C170: =$C$7*$G$170 -> 24.145 | D170: =$D$7*$G$170 -> 17.105 | E170: =$E$7*$G$170 -> 13.585 | F170: è | G170: 0.011
A171: 30th | B171: =$B$7*$G$171 -> 25.15 | C171: =$C$7*$G$171 -> 21.95 | D171: =$D$7*$G$171 -> 15.55 | E171: =$E$7*$G$171 -> 12.35 | F171: è | G171: 0.01
A172: Totals | B172: =SUM(B142:B171) -> 2515 | C172: =SUM(C142:C171) -> 2195 | D172: =SUM(D142:D171) -> 1555 | E172: =SUM(E142:E171) -> 1235 | F172: =B172+C172+D172+E172 -> 7500 | G172: =SUM(G142:G171) -> 1

Sheet 5D Payout BBR
A1: 5D Payout BBR
A2: Entry Fee | B2: # Entries | C2: % Payback | D2: $ From Entry | E2: Added $ | F2: Total Payout | G2: Total $ Held
A3: 50 | B3: 75 | C3: 0.8 | D3: =$A$3*$C$3*$B$3 -> 3000 | E3: 1500 | F3: =($A$3*$C$3)*$B$3+$E$3 -> 4500 | G3: =$A$3*(100%-$C$3)*$B$3 -> 750
A5: % in each D | B5: 0.3 | C5: 0.25 | D5: 0.2 | E5: 0.15 | F5: 0.1 | G5: Total % Payout | H5: =SUM(B5:F5) -> 1
B6: 1D | C6: 2D | D6: 3D | E6: 4D | F6: 5D
B7: =(($A$3*$B$3*$C$3*$B$5)+($E$3*$B$5)) -> 1350 | C7: =(($A$3*$B$3*$C$3*$C$5)+($E$3*$C$5)) -> 1125 | D7: =(($A$3*$B$3*$C$3*$D$5)+($E$3*$D$5)) -> 900 | E7: =(($A$3*$B$3*$C$3*$E$5)+($E$3*$E$5)) -> 675 | F7: =(($A$3*$B$3*$C$3*$F$5)+($E$3*$F$5)) -> 450
A8: Totals | B8: =SUM(B7) -> 1350 | C8: =SUM(C7) -> 1125 | D8: 900 | E8: 675 | F8: 450 | G8: =SUM(B8:F8) -> 4500
A10: For 1-25 riders 1 place
A11: Placings | B11: 1D | C11: 2D | D11: 3D | E11: 4D | F11: 5D
A12: 1st | B12: =$B$7*$H$12 -> 1350 | C12: =$C$7*$H$12 -> 1125 | D12: =$D$7*$H$12 -> 900 | E12: =$E$7*$H$12 -> 675 | F12: =$F$7*$H$12 -> 450 | G12: è | H12: 1
A13: Totals | B13: =SUM(B12:B12) -> 1350 | C13: =SUM(C12:C12) -> 1125 | D13: =SUM(D12:D12) -> 900 | E13: =SUM(E12:E12) -> 675 | F13: =SUM(F12) -> 450 | G13: =SUM(B13:F13) -> 4500 | H13: =SUM(H12) -> 1
A15: For 26-50 riders 2 places
A16: Placings | B16: 1D | C16: 2D | D16: 3D | E16: 4D | F16: 5D
A17: 1st | B17: =$B$7*$H$17 -> 810 | C17: =$C$7*$H$17 -> 675 | D17: =$D$7*$H$17 -> 540 | E17: =$E$7*$H$17 -> 405 | F17: =$F$7*$H$17 -> 270 | G17: è | H17: 0.6
A18: 2nd | B18: =$B$7*$H$18 -> 540 | C18: =$C$7*$H$18 -> 450 | D18: =$D$7*$H$18 -> 360 | E18: =$E$7*$H$18 -> 270 | F18: =$F$7*$H$18 -> 180 | G18: è | H18: 0.4
A19: Totals | B19: =SUM(B17:B18) -> 1350 | C19: =SUM(C17:C18) -> 1125 | D19: =SUM(D17:D18) -> 900 | E19: =SUM(E17:E18) -> 675 | F19: =SUM(F17:F18) -> 450 | G19: =SUM(B19:F19) -> 4500 | H19: =SUM(H17:H18) -> 1
A21: For 51-100 riders 3 places
A22: Placings | B22: 1D | C22: 2D | D22: 3D | E22: 4D | F22: 5D
A23: 1st | B23: =$B$7*$H$23 -> 675 | C23: =$C$7*$H$23 -> 562.5 | D23: =$D$7*$H$23 -> 450 | E23: =$E$7*$H$23 -> 337.5 | F23: =$F$7*$H$23 -> 225 | G23: è | H23: 0.5
A24: 2nd | B24: =$B$7*$H$24 -> 405 | C24: =$C$7*$H$24 -> 337.5 | D24: =$D$7*$H$24 -> 270 | E24: =$E$7*$H$24 -> 202.5 | F24: =$F$7*$H$24 -> 135 | G24: è | H24: 0.3
A25: 3rd | B25: =$B$7*$H$25 -> 270 | C25: =$C$7*$H$25 -> 225 | D25: =$D$7*$H$25 -> 180 | E25: =$E$7*$H$25 -> 135 | F25: =$F$7*$H$25 -> 90 | G25: è | H25: 0.2
A26: Totals | B26: =SUM(B23:B25) -> 1350 | C26: =SUM(C23:C25) -> 1125 | D26: =SUM(D23:D25) -> 900 | E26: =SUM(E23:E25) -> 675 | F26: =SUM(F23:F25) -> 450 | G26: =SUM(B26:F26) -> 4500 | H26: =SUM(H23:H25) -> 1
A28: For 101-143 riders 4 places
A29: Placings | B29: 1D | C29: 2D | D29: 3D | E29: 4D | F29: 5D
A30: 1st | B30: =$B$7*$H$30 -> 540 | C30: =$C$7*$H$30 -> 450 | D30: =$D$7*$H$30 -> 360 | E30: =$E$7*$H$30 -> 270 | F30: =$F$7*$H$30 -> 180 | G30: è | H30: 0.4
A31: 2nd | B31: =$B$7*$H$31 -> 405 | C31: =$C$7*$H$31 -> 337.5 | D31: =$D$7*$H$31 -> 270 | E31: =$E$7*$H$31 -> 202.5 | F31: =$F$7*$H$31 -> 135 | G31: è | H31: 0.3
A32: 3rd | B32: =$B$7*$H$32 -> 270 | C32: =$C$7*$H$32 -> 225 | D32: =$D$7*$H$32 -> 180 | E32: =$E$7*$H$32 -> 135 | F32: =$F$7*$H$32 -> 90 | G32: è | H32: 0.2
A33: 4th | B33: =$B$7*$H$33 -> 135 | C33: =$C$7*$H$33 -> 112.5 | D33: =$D$7*$H$33 -> 90 | E33: =$E$7*$H$33 -> 67.5 | F33: =$F$7*$H$33 -> 45 | G33: è | H33: 0.1
A34: Totals | B34: =SUM(B30:B33) -> 1350 | C34: =SUM(C30:C33) -> 1125 | D34: =SUM(D30:D33) -> 900 | E34: =SUM(E30:E33) -> 675 | F34: =SUM(F30:F33) -> 450 | G34: =SUM(B34:F34) -> 4500 | H34: =SUM(H30:H33) -> 1
A36: For 144-200 riders 5 places
A37: Placings | B37: 1D | C37: 2D | D37: 3D | E37: 4D | F37: 5D
A38: 1st | B38: =$B$7*$H$38 -> 445.5 | C38: =$C$7*$H$38 -> 371.25 | D38: =$D$7*$H$38 -> 297 | E38: =$E$7*$H$38 -> 222.75 | F38: =$F$7*$H$38 -> 148.5 | G38: è | H38: 0.33
A39: 2nd | B39: =$B$7*$H$39 -> 364.5 | C39: =$C$7*$H$39 -> 303.75 | D39: =$D$7*$H$39 -> 243 | E39: =$E$7*$H$39 -> 182.25 | F39: =$F$7*$H$39 -> 121.5 | G39: è | H39: 0.27
A40: 3rd | B40: =$B$7*$H$40 -> 270 | C40: =$C$7*$H$40 -> 225 | D40: =$D$7*$H$40 -> 180 | E40: =$E$7*$H$40 -> 135 | F40: =$F$7*$H$40 -> 90 | G40: è | H40: 0.2
A41: 4th | B41: =$B$7*$H$41 -> 175.5 | C41: =$C$7*$H$41 -> 146.25 | D41: =$D$7*$H$41 -> 117 | E41: =$E$7*$H$41 -> 87.75 | F41: =$F$7*$H$41 -> 58.5 | G41: è | H41: 0.13
A42: 5th | B42: =$B$7*$H$42 -> 94.5 | C42: =$C$7*$H$42 -> 78.75 | D42: =$D$7*$H$42 -> 63 | E42: =$E$7*$H$42 -> 47.25 | F42: =$F$7*$H$42 -> 31.5 | G42: è | H42: 0.07
A43: Totals | B43: =SUM(B38:B42) -> 1350 | C43: =SUM(C38:C42) -> 1125 | D43: =SUM(D38:D42) -> 900 | E43: =SUM(E38:E42) -> 675 | F43: =SUM(F38:F42) -> 450 | G43: =SUM(B43:F43) -> 4500 | H43: =SUM(H38:H42) -> 1
A45: For 201-250 riders 6 places
A46: Placings | B46: 1D | C46: 2D | D46: 3D | E46: 4D | F46: 5D
A47: 1st | B47: =$B$7*$H$47 -> 391.5 | C47: =$C$7*$H$47 -> 326.25 | D47: =$D$7*$H$47 -> 261 | E47: =$E$7*$H$47 -> 195.75 | F47: =$F$7*$H$47 -> 130.5 | G47: è | H47: 0.29
A48: 2nd | B48: =$B$7*$H$48 -> 324 | C48: =$C$7*$H$48 -> 270 | D48: =$D$7*$H$48 -> 216 | E48: =$E$7*$H$48 -> 162 | F48: =$F$7*$H$48 -> 108 | G48: è | H48: 0.24
A49: 3rd | B49: =$B$7*$H$49 -> 256.5 | C49: =$C$7*$H$49 -> 213.75 | D49: =$D$7*$H$49 -> 171 | E49: =$E$7*$H$49 -> 128.25 | F49: =$F$7*$H$49 -> 85.5 | G49: è | H49: 0.19
A50: 4th | B50: =$B$7*$H$50 -> 189 | C50: =$C$7*$H$50 -> 157.5 | D50: =$D$7*$H$50 -> 126 | E50: =$E$7*$H$50 -> 94.5 | F50: =$F$7*$H$50 -> 63 | G50: è | H50: 0.14
A51: 5th | B51: =$B$7*$H$51 -> 121.5 | C51: =$C$7*$H$51 -> 101.25 | D51: =$D$7*$H$51 -> 81 | E51: =$E$7*$H$51 -> 60.75 | F51: =$F$7*$H$51 -> 40.5 | G51: è | H51: 0.09
A52: 6th | B52: =$B$7*$H$52 -> 67.5 | C52: =$C$7*$H$52 -> 56.25 | D52: =$D$7*$H$52 -> 45 | E52: =$E$7*$H$52 -> 33.75 | F52: =$F$7*$H$52 -> 22.5 | G52: è | H52: 0.05
A53: Totals | B53: =SUM(B47:B52) -> 1350 | C53: =SUM(C47:C52) -> 1125 | D53: =SUM(D47:D52) -> 900 | E53: =SUM(E47:E52) -> 675 | F53: =SUM(F47:F52) -> 450 | G53: =SUM(B53:F53) -> 4500 | H53: =SUM(H47:H52) -> 1
A55: For 251-333 riders 8 places
A56: Placings | B56: 1D | C56: 2D | D56: 3D | E56: 4D | F56: 5D
A57: 1st | B57: =$B$7*$H$57 -> 324 | C57: =$C$7*$H$57 -> 270 | D57: =$D$7*$H$57 -> 216 | E57: =$E$7*$H$57 -> 162 | F57: =$F$7*$H$57 -> 108 | G57: è | H57: 0.24
A58: 2nd | B58: =$B$7*$H$58 -> 270 | C58: =$C$7*$H$58 -> 225 | D58: =$D$7*$H$58 -> 180 | E58: =$E$7*$H$58 -> 135 | F58: =$F$7*$H$58 -> 90 | G58: è | H58: 0.2
A59: 3rd | B59: =$B$7*$H$59 -> 229.5 | C59: =$C$7*$H$59 -> 191.25 | D59: =$D$7*$H$59 -> 153 | E59: =$E$7*$H$59 -> 114.75 | F59: =$F$7*$H$59 -> 76.5 | G59: è | H59: 0.17
A60: 4th | B60: =$B$7*$H$60 -> 175.5 | C60: =$C$7*$H$60 -> 146.25 | D60: =$D$7*$H$60 -> 117 | E60: =$E$7*$H$60 -> 87.75 | F60: =$F$7*$H$60 -> 58.5 | G60: è | H60: 0.13
A61: 5th | B61: =$B$7*$H$61 -> 135 | C61: =$C$7*$H$61 -> 112.5 | D61: =$D$7*$H$61 -> 90 | E61: =$E$7*$H$61 -> 67.5 | F61: =$F$7*$H$61 -> 45 | G61: è | H61: 0.1
A62: 6th | B62: =$B$7*$H$62 -> 94.5 | C62: =$C$7*$H$62 -> 78.75 | D62: =$D$7*$H$62 -> 63 | E62: =$E$7*$H$62 -> 47.25 | F62: =$F$7*$H$62 -> 31.5 | G62: è | H62: 0.07
A63: 7th | B63: =$B$7*$H$63 -> 67.5 | C63: =$C$7*$H$63 -> 56.25 | D63: =$D$7*$H$63 -> 45 | E63: =$E$7*$H$63 -> 33.75 | F63: =$F$7*$H$63 -> 22.5 | G63: è | H63: 0.05
A64: 8th | B64: =$B$7*$H$64 -> 54 | C64: =$C$7*$H$64 -> 45 | D64: =$D$7*$H$64 -> 36 | E64: =$E$7*$H$64 -> 27 | F64: =$F$7*$H$64 -> 18 | G64: è | H64: 0.04
A65: Totals | B65: =SUM(B57:B64) -> 1350 | C65: =SUM(C57:C64) -> 1125 | D65: =SUM(D57:D64) -> 900 | E65: =SUM(E57:E64) -> 675 | F65: =SUM(F57:F64) -> 450 | G65: =SUM(B65:F65) -> 4500 | H65: =SUM(H57:H64) -> 1
A67: For 334-500 riders 10 places
A68: Placings | B68: 1D | C68: 2D | D68: 3D | E68: 4D | F68: 5D
A69: 1st | B69: =$B$7*$H$69 -> 283.5 | C69: =$C$7*$H$69 -> 236.25 | D69: =$D$7*$H$69 -> 189 | E69: =$E$7*$H$69 -> 141.75 | F69: =$F$7*$H$69 -> 94.5 | G69: è | H69: 0.21
A70: 2nd | B70: =$B$7*$H$70 -> 243 | C70: =$C$7*$H$70 -> 202.5 | D70: =$D$7*$H$70 -> 162 | E70: =$E$7*$H$70 -> 121.5 | F70: =$F$7*$H$70 -> 81 | G70: è | H70: 0.18
A71: 3rd | B71: =$B$7*$H$71 -> 202.5 | C71: =$C$7*$H$71 -> 168.75 | D71: =$D$7*$H$71 -> 135 | E71: =$E$7*$H$71 -> 101.25 | F71: =$F$7*$H$71 -> 67.5 | G71: è | H71: 0.15
A72: 4th | B72: =$B$7*$H$72 -> 162 | C72: =$C$7*$H$72 -> 135 | D72: =$D$7*$H$72 -> 108 | E72: =$E$7*$H$72 -> 81 | F72: =$F$7*$H$72 -> 54 | G72: è | H72: 0.12
A73: 5th | B73: =$B$7*$H$73 -> 121.5 | C73: =$C$7*$H$73 -> 101.25 | D73: =$D$7*$H$73 -> 81 | E73: =$E$7*$H$73 -> 60.75 | F73: =$F$7*$H$73 -> 40.5 | G73: è | H73: 0.09
A74: 6th | B74: =$B$7*$H$74 -> 94.5 | C74: =$C$7*$H$74 -> 78.75 | D74: =$D$7*$H$74 -> 63 | E74: =$E$7*$H$74 -> 47.25 | F74: =$F$7*$H$74 -> 31.5 | G74: è | H74: 0.07
A75: 7th | B75: =$B$7*$H$75 -> 81 | C75: =$C$7*$H$75 -> 67.5 | D75: =$D$7*$H$75 -> 54 | E75: =$E$7*$H$75 -> 40.5 | F75: =$F$7*$H$75 -> 27 | G75: è | H75: 0.06
A76: 8th | B76: =$B$7*$H$76 -> 67.5 | C76: =$C$7*$H$76 -> 56.25 | D76: =$D$7*$H$76 -> 45 | E76: =$E$7*$H$76 -> 33.75 | F76: =$F$7*$H$76 -> 22.5 | G76: è | H76: 0.05
A77: 9th | B77: =$B$7*$H$77 -> 54 | C77: =$C$7*$H$77 -> 45 | D77: =$D$7*$H$77 -> 36 | E77: =$E$7*$H$77 -> 27 | F77: =$F$7*$H$77 -> 18 | G77: è | H77: 0.04
A78: 10th | B78: =$B$7*$H$78 -> 40.5 | C78: =$C$7*$H$78 -> 33.75 | D78: =$D$7*$H$78 -> 27 | E78: =$E$7*$H$78 -> 20.25 | F78: =$F$7*$H$78 -> 13.5 | G78: è | H78: 0.03
A79: Totals | B79: =SUM(B69:B78) -> 1350 | C79: =SUM(C69:C78) -> 1125 | D79: 900 | E79: 675 | F79: 450 | G79: =SUM(B79:F79) -> 4500 | H79: =SUM(H69:H78) -> 1
A81: For 501-666 riders 12 places
A82: Placings | B82: 1D | C82: 2D | D82: 3D | E82: 4D | F82: 5D
A83: 1st | B83: =$B$7*$H$83 -> 256.5 | C83: =$C$7*$H$83 -> 213.75 | D83: =$D$7*$H$83 -> 171 | E83: =$E$7*$H$83 -> 128.25 | F83: =$F$7*$H$83 -> 85.5 | G83: è | H83: 0.19
A84: 2nd | B84: =$B$7*$H$84 -> 202.5 | C84: =$C$7*$H$84 -> 168.75 | D84: =$D$7*$H$84 -> 135 | E84: =$E$7*$H$84 -> 101.25 | F84: =$F$7*$H$84 -> 67.5 | G84: è | H84: 0.15
A85: 3rd | B85: =$B$7*$H$85 -> 162 | C85: =$C$7*$H$85 -> 135 | D85: =$D$7*$H$85 -> 108 | E85: =$E$7*$H$85 -> 81 | F85: =$F$7*$H$85 -> 54 | G85: è | H85: 0.12
A86: 4th | B86: =$B$7*$H$86 -> 135 | C86: =$C$7*$H$86 -> 112.5 | D86: =$D$7*$H$86 -> 90 | E86: =$E$7*$H$86 -> 67.5 | F86: =$F$7*$H$86 -> 45 | G86: è | H86: 0.1
A87: 5th | B87: =$B$7*$H$87 -> 121.5 | C87: =$C$7*$H$87 -> 101.25 | D87: =$D$7*$H$87 -> 81 | E87: =$E$7*$H$87 -> 60.75 | F87: =$F$7*$H$87 -> 40.5 | G87: è | H87: 0.09
A88: 6th | B88: =$B$7*$H$88 -> 108 | C88: =$C$7*$H$88 -> 90 | D88: =$D$7*$H$88 -> 72 | E88: =$E$7*$H$88 -> 54 | F88: =$F$7*$H$88 -> 36 | G88: è | H88: 0.08
A89: 7th | B89: =$B$7*$H$89 -> 94.5 | C89: =$C$7*$H$89 -> 78.75 | D89: =$D$7*$H$89 -> 63 | E89: =$E$7*$H$89 -> 47.25 | F89: =$F$7*$H$89 -> 31.5 | G89: è | H89: 0.07
A90: 8th | B90: =$B$7*$H$90 -> 81 | C90: =$C$7*$H$90 -> 67.5 | D90: =$D$7*$H$90 -> 54 | E90: =$E$7*$H$90 -> 40.5 | F90: =$F$7*$H$90 -> 27 | G90: è | H90: 0.06
A91: 9th | B91: =$B$7*$H$91 -> 67.5 | C91: =$C$7*$H$91 -> 56.25 | D91: =$D$7*$H$91 -> 45 | E91: =$E$7*$H$91 -> 33.75 | F91: =$F$7*$H$91 -> 22.5 | G91: è | H91: 0.05
A92: 10th | B92: =$B$7*$H$92 -> 54 | C92: =$C$7*$H$92 -> 45 | D92: =$D$7*$H$92 -> 36 | E92: =$E$7*$H$92 -> 27 | F92: =$F$7*$H$92 -> 18 | G92: è | H92: 0.04
A93: 11th | B93: =$B$7*$H$93 -> 40.5 | C93: =$C$7*$H$93 -> 33.75 | D93: =$D$7*$H$93 -> 27 | E93: =$E$7*$H$93 -> 20.25 | F93: =$F$7*$H$93 -> 13.5 | G93: è | H93: 0.03
A94: 12th | B94: =$B$7*$H$94 -> 27 | C94: =$C$7*$H$94 -> 22.5 | D94: =$D$7*$H$94 -> 18 | E94: =$E$7*$H$94 -> 13.5 | F94: =$F$7*$H$94 -> 9 | G94: è | H94: 0.02
A95: Totals | B95: =SUM(B83:B94) -> 1350 | C95: =SUM(C83:C94) -> 1125 | D95: =SUM(D83:D94) -> 900 | E95: =SUM(E83:E94) -> 675 | F95: =SUM(F83:F94) -> 450 | G95: =SUM(B95:F95) -> 4500 | H95: =SUM(H83:H94) -> 1
A97: For 667-1000 riders 15 places
A98: Placings | B98: 1D | C98: 2D | D98: 3D | E98: 4D | F98: 5D
A99: 1st | B99: =$B$7*$H$99 -> 243 | C99: =$C$7*$H$99 -> 202.5 | D99: =$D$7*$H$99 -> 162 | E99: =$E$7*$H$99 -> 121.5 | F99: =$F$7*$H$99 -> 81 | G99: è | H99: 0.18
A100: 2nd | B100: =$B$7*$H$100 -> 202.5 | C100: =$C$7*$H$100 -> 168.75 | D100: =$D$7*$H$100 -> 135 | E100: =$E$7*$H$100 -> 101.25 | F100: =$F$7*$H$100 -> 67.5 | G100: è | H100: 0.15
A101: 3rd | B101: =$B$7*$H$101 -> 162 | C101: =$C$7*$H$101 -> 135 | D101: =$D$7*$H$101 -> 108 | E101: =$E$7*$H$101 -> 81 | F101: =$F$7*$H$101 -> 54 | G101: è | H101: 0.12
A102: 4th | B102: =$B$7*$H$102 -> 135 | C102: =$C$7*$H$102 -> 112.5 | D102: =$D$7*$H$102 -> 90 | E102: =$E$7*$H$102 -> 67.5 | F102: =$F$7*$H$102 -> 45 | G102: è | H102: 0.1
A103: 5th | B103: =$B$7*$H$103 -> 114.75 | C103: =$C$7*$H$103 -> 95.625 | D103: =$D$7*$H$103 -> 76.5 | E103: =$E$7*$H$103 -> 57.375 | F103: =$F$7*$H$103 -> 38.25 | G103: è | H103: 0.085
A104: 6th | B104: =$B$7*$H$104 -> 94.5 | C104: =$C$7*$H$104 -> 78.75 | D104: =$D$7*$H$104 -> 63 | E104: =$E$7*$H$104 -> 47.25 | F104: =$F$7*$H$104 -> 31.5 | G104: è | H104: 0.07
A105: 7th | B105: =$B$7*$H$105 -> 81 | C105: =$C$7*$H$105 -> 67.5 | D105: =$D$7*$H$105 -> 54 | E105: =$E$7*$H$105 -> 40.5 | F105: =$F$7*$H$105 -> 27 | G105: è | H105: 0.06
A106: 8th | B106: =$B$7*$H$106 -> 67.5 | C106: =$C$7*$H$106 -> 56.25 | D106: =$D$7*$H$106 -> 45 | E106: =$E$7*$H$106 -> 33.75 | F106: =$F$7*$H$106 -> 22.5 | G106: è | H106: 0.05
A107: 9th | B107: =$B$7*$H$107 -> 57.375 | C107: =$C$7*$H$107 -> 47.8125 | D107: =$D$7*$H$107 -> 38.25 | E107: =$E$7*$H$107 -> 28.6875 | F107: =$F$7*$H$107 -> 19.125 | G107: è | H107: 0.0425
A108: 10th | B108: =$B$7*$H$108 -> 47.25 | C108: =$C$7*$H$108 -> 39.375 | D108: =$D$7*$H$108 -> 31.5 | E108: =$E$7*$H$108 -> 23.625 | F108: =$F$7*$H$108 -> 15.75 | G108: è | H108: 0.035
A109: 11th | B109: =$B$7*$H$109 -> 40.5 | C109: =$C$7*$H$109 -> 33.75 | D109: =$D$7*$H$109 -> 27 | E109: =$E$7*$H$109 -> 20.25 | F109: =$F$7*$H$109 -> 13.5 | G109: è | H109: 0.03
A110: 12th | B110: =$B$7*$H$110 -> 33.75 | C110: =$C$7*$H$110 -> 28.125 | D110: =$D$7*$H$110 -> 22.5 | E110: =$E$7*$H$110 -> 16.875 | F110: =$F$7*$H$110 -> 11.25 | G110: è | H110: 0.025
A111: 13th | B111: =$B$7*$H$111 -> 27 | C111: =$C$7*$H$111 -> 22.5 | D111: =$D$7*$H$111 -> 18 | E111: =$E$7*$H$111 -> 13.5 | F111: =$F$7*$H$111 -> 9 | G111: è | H111: 0.02
A112: 14th | B112: =$B$7*$H$112 -> 23.625 | C112: =$C$7*$H$112 -> 19.6875 | D112: =$D$7*$H$112 -> 15.75 | E112: =$E$7*$H$112 -> 11.8125 | F112: =$F$7*$H$112 -> 7.875 | G112: è | H112: 0.0175
A113: 15th | B113: =$B$7*$H$113 -> 20.25 | C113: =$C$7*$H$113 -> 16.875 | D113: =$D$7*$H$113 -> 13.5 | E113: =$E$7*$H$113 -> 10.125 | F113: =$F$7*$H$113 -> 6.75 | G113: è | H113: 0.015
A114: Totals | B114: =SUM(B99:B113) -> 1350 | C114: =SUM(C99:C113) -> 1125 | D114: =SUM(D99:D113) -> 900 | E114: =SUM(E99:E113) -> 675 | F114: =SUM(F99:F113) -> 450 | G114: =SUM(B114:F114) -> 4500 | H114: =SUM(H99:H113) -> 1
A116: For 1001-1500 riders 20 places
A117: Placings | B117: 1D | C117: 2D | D117: 3D | E117: 4D | F117: 5D
A118: 1st | B118: =$B$7*$H$118 -> 189 | C118: =$C$7*$H$118 -> 157.5 | D118: =$D$7*$H$118 -> 126 | E118: =$E$7*$H$118 -> 94.5 | F118: =$F$7*$H$118 -> 63 | G118: è | H118: 0.14
A119: 2nd | B119: =$B$7*$H$119 -> 148.5 | C119: =$C$7*$H$119 -> 123.75 | D119: =$D$7*$H$119 -> 99 | E119: =$E$7*$H$119 -> 74.25 | F119: =$F$7*$H$119 -> 49.5 | G119: è | H119: 0.11
A120: 3rd | B120: =$B$7*$H$120 -> 121.5 | C120: =$C$7*$H$120 -> 101.25 | D120: =$D$7*$H$120 -> 81 | E120: =$E$7*$H$120 -> 60.75 | F120: =$F$7*$H$120 -> 40.5 | G120: è | H120: 0.09
A121: 4th | B121: =$B$7*$H$121 -> 103.95 | C121: =$C$7*$H$121 -> 86.625 | D121: =$D$7*$H$121 -> 69.3 | E121: =$E$7*$H$121 -> 51.975 | F121: =$F$7*$H$121 -> 34.65 | G121: è | H121: 0.077
A122: 5th | B122: =$B$7*$H$122 -> 94.5 | C122: =$C$7*$H$122 -> 78.75 | D122: =$D$7*$H$122 -> 63 | E122: =$E$7*$H$122 -> 47.25 | F122: =$F$7*$H$122 -> 31.5 | G122: è | H122: 0.07
A123: 6th | B123: =$B$7*$H$123 -> 87.75 | C123: =$C$7*$H$123 -> 73.125 | D123: =$D$7*$H$123 -> 58.5 | E123: =$E$7*$H$123 -> 43.875 | F123: =$F$7*$H$123 -> 29.25 | G123: è | H123: 0.065
A124: 7th | B124: =$B$7*$H$124 -> 81 | C124: =$C$7*$H$124 -> 67.5 | D124: =$D$7*$H$124 -> 54 | E124: =$E$7*$H$124 -> 40.5 | F124: =$F$7*$H$124 -> 27 | G124: è | H124: 0.06
A125: 8th | B125: =$B$7*$H$125 -> 74.25 | C125: =$C$7*$H$125 -> 61.875 | D125: =$D$7*$H$125 -> 49.5 | E125: =$E$7*$H$125 -> 37.125 | F125: =$F$7*$H$125 -> 24.75 | G125: è | H125: 0.055
A126: 9th | B126: =$B$7*$H$126 -> 67.5 | C126: =$C$7*$H$126 -> 56.25 | D126: =$D$7*$H$126 -> 45 | E126: =$E$7*$H$126 -> 33.75 | F126: =$F$7*$H$126 -> 22.5 | G126: è | H126: 0.05
A127: 10th | B127: =$B$7*$H$127 -> 60.75 | C127: =$C$7*$H$127 -> 50.625 | D127: =$D$7*$H$127 -> 40.5 | E127: =$E$7*$H$127 -> 30.375 | F127: =$F$7*$H$127 -> 20.25 | G127: è | H127: 0.045
A128: 11th | B128: =$B$7*$H$128 -> 54 | C128: =$C$7*$H$128 -> 45 | D128: =$D$7*$H$128 -> 36 | E128: =$E$7*$H$128 -> 27 | F128: =$F$7*$H$128 -> 18 | G128: è | H128: 0.04
A129: 12th | B129: =$B$7*$H$129 -> 49.95 | C129: =$C$7*$H$129 -> 41.625 | D129: =$D$7*$H$129 -> 33.3 | E129: =$E$7*$H$129 -> 24.975 | F129: =$F$7*$H$129 -> 16.65 | G129: è | H129: 0.037
A130: 13th | B130: =$B$7*$H$130 -> 44.55 | C130: =$C$7*$H$130 -> 37.125 | D130: =$D$7*$H$130 -> 29.7 | E130: =$E$7*$H$130 -> 22.275 | F130: =$F$7*$H$130 -> 14.85 | G130: è | H130: 0.033
A131: 14th | B131: =$B$7*$H$131 -> 39.15 | C131: =$C$7*$H$131 -> 32.625 | D131: =$D$7*$H$131 -> 26.1 | E131: =$E$7*$H$131 -> 19.575 | F131: =$F$7*$H$131 -> 13.05 | G131: è | H131: 0.029
A132: 15th | B132: =$B$7*$H$132 -> 33.75 | C132: =$C$7*$H$132 -> 28.125 | D132: =$D$7*$H$132 -> 22.5 | E132: =$E$7*$H$132 -> 16.875 | F132: =$F$7*$H$132 -> 11.25 | G132: è | H132: 0.025
A133: 16th | B133: =$B$7*$H$133 -> 28.35 | C133: =$C$7*$H$133 -> 23.625 | D133: =$D$7*$H$133 -> 18.9 | E133: =$E$7*$H$133 -> 14.175 | F133: =$F$7*$H$133 -> 9.45 | G133: è | H133: 0.021
A134: 17th | B134: =$B$7*$H$134 -> 22.95 | C134: =$C$7*$H$134 -> 19.125 | D134: =$D$7*$H$134 -> 15.3 | E134: =$E$7*$H$134 -> 11.475 | F134: =$F$7*$H$134 -> 7.65 | G134: è | H134: 0.017
A135: 18th | B135: =$B$7*$H$135 -> 18.9 | C135: =$C$7*$H$135 -> 15.75 | D135: =$D$7*$H$135 -> 12.6 | E135: =$E$7*$H$135 -> 9.45 | F135: =$F$7*$H$135 -> 6.3 | G135: è | H135: 0.014
A136: 19th | B136: =$B$7*$H$136 -> 16.2 | C136: =$C$7*$H$136 -> 13.5 | D136: =$D$7*$H$136 -> 10.8 | E136: =$E$7*$H$136 -> 8.1 | F136: =$F$7*$H$136 -> 5.4 | G136: è | H136: 0.012
A137: 20th | B137: =$B$7*$H$137 -> 13.5 | C137: =$C$7*$H$137 -> 11.25 | D137: =$D$7*$H$137 -> 9 | E137: =$E$7*$H$137 -> 6.75 | F137: =$F$7*$H$137 -> 4.5 | G137: è | H137: 0.01
A138: Totals | B138: =SUM(B118:B137) -> 1350 | C138: =SUM(C118:C137) -> 1125 | D138: 900 | E138: 675 | F138: 450 | G138: =SUM(B138:F138) -> 4500 | H138: =SUM(H118:H137) -> 1
A140: For 1501 or More riders 30 places
A141: Placings | B141: 1D | C141: 2D | D141: 3D | E141: 4D | F141: 5D
A142: 1st | B142: =$B$7*$H142 -> 162 | C142: =$C$7*$H142 -> 135 | D142: =$D$7*$H142 -> 108 | E142: =$E$7*$H142 -> 81 | F142: =$F$7*$H142 -> 54 | G142: è | H142: 0.12
A143: 2nd | B143: =$B$7*$H143 -> 128.25 | C143: 106.875 | D143: 85.5 | E143: 64.125 | F143: 42.75 | G143: è | H143: 0.095
A144: 3rd | B144: =$B$7*$H144 -> 98.55 | C144: 82.125 | D144: 65.7 | E144: 49.275 | F144: 32.85 | G144: è | H144: 0.073
A145: 4th | B145: =$B$7*$H145 -> 83.7 | C145: 69.75 | D145: 55.8 | E145: 41.85 | F145: 27.9 | G145: è | H145: 0.062
A146: 5th | B146: 67.5 | C146: 56.25 | D146: 45 | E146: 33.75 | F146: 22.5 | G146: è | H146: 0.05
A147: 6th | B147: 60.75 | C147: 50.625 | D147: 40.5 | E147: 30.375 | F147: 20.25 | G147: è | H147: 0.045
A148: 7th | B148: 58.05 | C148: 48.375 | D148: 38.7 | E148: 29.025 | F148: 19.35 | G148: è | H148: 0.043
A149: 8th | B149: 54 | C149: 45 | D149: 36 | E149: 27 | F149: 18 | G149: è | H149: 0.04
A150: 9th | B150: 49.95 | C150: 41.625 | D150: 33.3 | E150: 24.975 | F150: 16.65 | G150: è | H150: 0.037
A151: 10th | B151: 47.25 | C151: 39.375 | D151: 31.5 | E151: 23.625 | F151: 15.75 | G151: è | H151: 0.035
A152: 11th | B152: 44.55 | C152: 37.125 | D152: 29.7 | E152: 22.275 | F152: 14.85 | G152: è | H152: 0.033
A153: 12th | B153: 41.85 | C153: 34.875 | D153: 27.9 | E153: 20.925 | F153: 13.95 | G153: è | H153: 0.031
A154: 13th | B154: 39.15 | C154: 32.625 | D154: 26.1 | E154: 19.575 | F154: 13.05 | G154: è | H154: 0.029
A155: 14th | B155: 36.45 | C155: 30.375 | D155: 24.3 | E155: 18.225 | F155: 12.15 | G155: è | H155: 0.027
A156: 15th | B156: 33.75 | C156: 28.125 | D156: 22.5 | E156: 16.875 | F156: 11.25 | G156: è | H156: 0.025
A157: 16th | B157: 32.4 | C157: 27 | D157: 21.6 | E157: 16.2 | F157: 10.8 | G157: è | H157: 0.024
A158: 17th | B158: 31.05 | C158: 25.875 | D158: 20.7 | E158: 15.525 | F158: 10.35 | G158: è | H158: 0.023
A159: 18th | B159: 29.7 | C159: 24.75 | D159: 19.8 | E159: 14.85 | F159: 9.9 | G159: è | H159: 0.022
A160: 19th | B160: 28.35 | C160: 23.625 | D160: 18.9 | E160: 14.175 | F160: 9.45 | G160: è | H160: 0.021
A161: 20th | B161: 27 | C161: 22.5 | D161: 18 | E161: 13.5 | F161: 9 | G161: è | H161: 0.02
A162: 21st | B162: 25.65 | C162: 21.375 | D162: 17.1 | E162: 12.825 | F162: 8.55 | G162: è | H162: 0.019
A163: 22nd | B163: 24.3 | C163: 20.25 | D163: 16.2 | E163: 12.15 | F163: 8.1 | G163: è | H163: 0.018
A164: 23rd | B164: 22.95 | C164: 19.125 | D164: 15.3 | E164: 11.475 | F164: 7.65 | G164: è | H164: 0.017
A165: 24th | B165: 21.6 | C165: 18 | D165: 14.4 | E165: 10.8 | F165: 7.2 | G165: è | H165: 0.016
A166: 25th | B166: 20.25 | C166: 16.875 | D166: 13.5 | E166: 10.125 | F166: 6.75 | G166: è | H166: 0.015
A167: 26th | B167: 18.9 | C167: 15.75 | D167: 12.6 | E167: 9.45 | F167: 6.3 | G167: è | H167: 0.014
A168: 27th | B168: 17.55 | C168: 14.625 | D168: 11.7 | E168: 8.775 | F168: 5.85 | G168: è | H168: 0.013
A169: 28th | B169: 16.2 | C169: 13.5 | D169: 10.8 | E169: 8.1 | F169: 5.4 | G169: è | H169: 0.012
A170: 29th | B170: 14.85 | C170: 12.375 | D170: 9.9 | E170: 7.425 | F170: 4.95 | G170: è | H170: 0.011
A171: 30th | B171: 13.5 | C171: 11.25 | D171: 9 | E171: 6.75 | F171: 4.5 | G171: è | H171: 0.01
A172: Totals | B172: =SUM(B142:B171) -> 1350 | C172: =SUM(C142:C171) -> 1125 | D172: 900 | E172: 675 | F172: 450 | G172: =SUM(B172:F172) -> 4500 | H172: =SUM(H142:H171) -> 1

Sheet DON'T TOUCH (hidden)
A2: Yes | C2: S | D2: 5 | E2: X
C3: A | D3: 10
C4: Y | D4: 15
C5: P | D5: BP
D6: SCR
